Workbook

Sheet Feuille de saisie
F2: Résultats des tests de condition physique - Rameurs J12 à J14
F6: Ligue Nouvelle Aquitaine
B8: ="Nombre de sportifs : "&COUNTA(totalsexe)&" dont "&COUNTIF(totalsexe,"F")&" femmes et "&COUNTIF(totalsexe,"H")&" hommes" -> Nombre de sportifs : 194 dont 0 femmes et 194 hommes
B9: NOM Prénom | C9: Club | D9: Catégorie | E9: Sexe | F9: Date de naissance | G9: SAUT EN LONGUEUR SANS ÉLAN | H9: 5 FOULÉES BONDISSANTES | I9: SAUT EN HAUTEUR SANS ÉLAN | J9: POMPES | K9: ABDOMINAUX | L9: ERGO : 5 COUPS MAX | M9: TEST NAVETTE | N9: =G9 -> SAUT EN LONGUEUR SANS ÉLAN | O9: 5 FOULÉES BONDISSANTES | P9: SAUT EN HAUTEUR SANS ÉLAN | Q9: POMPES | R9: ABDOMINAUX | S9: ERGO : 5 COUPS MAX | T9: TEST NAVETTE
G11: Distance en m | H11: Distance en m | I11: Hauteur en cm | J11: Nombre | K11: Nombre | L11: Puissance en Watt | M11: Numéro du palier | N11: Note/20 | O11: Note/20 | P11: Note/20 | Q11: Note/20 | R11: Note/20 | S11: Note/20 | T11: Note/20 | U11: Somme | V11: Moyenne | W11: Catégories J12 et J14
B12: MICHIARA ALEXANDRE | C12: BAYONNE AV | D12: =IF(B12<>"","J"&((2018)-(YEAR(F12)))&E12,"") -> J14H | E12: H | F12: 2004-02-20 | G12: 2.35 | H12: 12.1 | I12: 55 | J12: 30 | K12: 24 | L12: 445 | M12: 10 | N12: =IF(G12<>"",IF(ISERROR(IF(E12="F",VLOOKUP(G12,saut_f,3,TRUE),VLOOKUP(G12,saut_m,2,TRUE))),0,IF(E12="F",VLOOKUP(G12,saut_f,3,TRUE),VLOOKUP(G12,saut_m,2,TRUE))),"") -> 19 | O12: =IF(H12<>"",IF(ISERROR(IF(E12="F",VLOOKUP(H12,foulees_f,3,TRUE),VLOOKUP(H12,foulees_m,2,TRUE))),0,IF(E12="F",VLOOKUP(H12,foulees_f,3,TRUE),VLOOKUP(H12,foulees_m,2,TRUE))),"") -> 20 | P12: =IF(I12<>"",IF(ISERROR(IF(E12="F",VLOOKUP(I12,sauth_f,3,TRUE),VLOOKUP(I12,sauth_m,2,TRUE))),0,IF(E12="F",VLOOKUP(I12,sauth_f,3,TRUE),VLOOKUP(I12,sauth_m,2,TRUE))),"") -> 20 | Q12: =IF(J12<>"",IF(ISERROR(IF(E12="F",VLOOKUP(J12,pompes_f,3,TRUE),VLOOKUP(J12,pompes_m,2,TRUE))),0,IF(E12="F",VLOOKUP(J12,pompes_f,3,TRUE),VLOOKUP(J12,pompes_m,2,TRUE))),"") -> 20 | R12: =IF(K12<>"",IF(ISERROR(IF(E12="F",VLOOKUP(K12,abdos_f,3,TRUE),VLOOKUP(K12,abdos_m,2,TRUE))),0,IF(E12="F",VLOOKUP(K12,abdos_f,3,TRUE),VLOOKUP(K12,abdos_m,2,TRUE))),"") -> 9 | S12: =IF(L12<>"",IF(ISERROR(IF(E12="F",VLOOKUP(L12,ergo_f,3,TRUE),VLOOKUP(L12,ergo_m,2,TRUE))),0,IF(E12="F",VLOOKUP(L12,ergo_f,3,TRUE),VLOOKUP(L12,ergo_m,2,TRUE))),"") -> 20 | T12: =IF(M12<>"",IF(ISERROR(IF(E12="F",VLOOKUP(M12,nav_f,3,TRUE),VLOOKUP(M12,nav_m,2,TRUE))),0,IF(E12="F",VLOOKUP(M12,nav_f,3,TRUE),VLOOKUP(M12,nav_m,2,TRUE)) ),"") -> 10 | U12: =SUM(T12,N12,O12,P12,Q12,R12,S12) -> 118 | V12: =IF(ISERROR(AVERAGE(T12,N12,O12,P12,Q12,R12,S12)),"0",AVERAGE(T12,N12,O12,P12,Q12,R12,S12)) -> 16.85714286 | W12: =IF(D12<>"",(IF(OR(LEFT(D12,3)="J13",LEFT(D12,3)="J14"),"J14",IF(OR(LEFT(D12,3)="J11",LEFT(D12,3)="J12"),"J12","J10"))),"") -> J14 | X12: =E12 -> H
B13: LATOUR TITOAN | C13: ST SYLVESTRE CNSS | D13: J13H | E13: H | F13: 2005-02-02 | G13: 2.24 | H13: 12.41 | I13: 48 | J13: 30 | K13: 27 | L13: 426 | M13: 9.75 | N13: 16 | O13: 20 | P13: 19 | Q13: 20 | R13: 12 | S13: 19 | T13: 9 | U13: 115 | V13: 16.42857143 | W13: J14 | X13: H
B14: SANCHEZ HUGO | C14: LIBOURNE CN | D14: J14H | E14: H | F14: 2004-03-24 | G14: 2.23 | H14: 12 | I14: 55 | J14: 31 | K14: 23 | L14: 413 | M14: 10.5 | N14: 16 | O14: 20 | P14: 20 | Q14: 20 | R14: 8 | S14: 18 | T14: 11 | U14: 113 | V14: 16.14285714 | W14: J14 | X14: H
B15: GOUDIN AMAURY | C15: LA REOLE AS | D15: J14H | E15: H | F15: 2004-03-01 | G15: 2.42 | H15: 13.48 | I15: 44 | J15: 25 | K15: 27 | L15: 551 | M15: 8 | N15: 20 | O15: 20 | P15: 17 | Q15: 15 | R15: 12 | S15: 20 | T15: 6 | U15: 110 | V15: 15.71428571 | W15: J14 | X15: H
B16: SOUBESTE PIERREESTEBAN | C16: BAYONNE SN | D16: J14H | E16: H | F16: 2004-04-19 | G16: 2.1 | H16: 11.25 | I16: 47 | J16: 35 | K16: 21 | L16: 542 | M16: 8 | N16: 15 | O16: 20 | P16: 18 | Q16: 20 | R16: 6 | S16: 20 | T16: 6 | U16: 105 | V16: 15 | W16: J14 | X16: H
B17: VOISIN BASTIEN | C17: BAYONNE SN | D17: J14H | E17: H | F17: 2004-02-20 | G17: 2.25 | H17: 11.3 | I17: 53 | J17: 30 | K17: 18 | L17: 362 | M17: 10 | N17: 17 | O17: 20 | P17: 20 | Q17: 20 | R17: 4 | S17: 13 | T17: 10 | U17: 104 | V17: 14.85714286 | W17: J14 | X17: H
B18: VESSIERE THEO | C18: CASTILLON RC | D18: J14H | E18: H | F18: 2004-01-05 | G18: 1.86 | H18: 11 | I18: 56 | J18: 42 | K18: 20 | L18: 533 | M18: 9 | N18: 10 | O18: 20 | P18: 20 | Q18: 20 | R18: 5 | S18: 20 | T18: 8 | U18: 103 | V18: 14.71428571 | W18: J14 | X18: H
B19: PAGA CLEMENT | C19: VILLENEUVE AV | D19: J13H | E19: H | F19: 2005-02-14 | G19: 2.18 | H19: 12.02 | I19: 51 | J19: 25 | K19: 26 | L19: 441 | M19: 5 | N19: 16 | O19: 20 | P19: 20 | Q19: 15 | R19: 11 | S19: 20 | T19: 0 | U19: 102 | V19: 14.57142857 | W19: J14 | X19: H
B20: CANTINI REMI | C20: COGNAC YRC | D20: J14H | E20: H | F20: 2004-05-09 | G20: 2.18 | H20: 11.6 | I20: 40 | J20: 29 | K20: 20 | L20: 430 | M20: 8.5 | N20: 16 | O20: 20 | P20: 15 | Q20: 19 | R20: 5 | S20: 20 | T20: 7 | U20: 102 | V20: 14.57142857 | W20: J14 | X20: H
B21: BECHON MATHIS | C21: CASTILLON RC | D21: =IF(B21<>"","J"&((2018)-(YEAR(F21)))&E21,"") -> J14H | E21: H | F21: 2004-06-22 | G21: 2.04 | H21: 11.51 | I21: 45 | J21: 30 | K21: 28 | L21: 304 | M21: 11 | N21: 13 | O21: 20 | P21: 17 | Q21: 20 | R21: 13 | S21: 7 | T21: 12 | U21: 102 | V21: 14.57142857 | W21: J14 | X21: H
B22: POURTIER QUENTIN | C22: BORDEAUX EN | D22: J14H | E22: H | F22: 2004-04-30 | G22: 1.82 | H22: 11.41 | I22: 39 | J22: 31 | K22: 23 | L22: 569 | M22: 9.5 | N22: 9 | O22: 20 | P22: 14 | Q22: 20 | R22: 8 | S22: 20 | T22: 9 | U22: 100 | V22: 14.28571429 | W22: J14 | X22: H
B23: DAVID LOUIS | C23: COGNAC YRC | D23: J14H | E23: H | F23: 2004-03-15 | G23: 2.1 | H23: 11.4 | I23: 44 | J23: 31 | K23: 18 | L23: 378 | M23: 10.25 | N23: 15 | O23: 20 | P23: 17 | Q23: 20 | R23: 4 | S23: 14 | T23: 10 | U23: 100 | V23: 14.28571429 | W23: J14 | X23: H
B24: DE SAINT SALVY MAX | C24: LIBOURNE CN | D24: J13H | E24: H | F24: 2005-07-17 | G24: 1.94 | H24: 11.3 | I24: 32 | J24: 50 | K24: 31 | L24: 302 | M24: 10.25 | N24: 11 | O24: 20 | P24: 11 | Q24: 20 | R24: 16 | S24: 7 | T24: 10 | U24: 95 | V24: 13.57142857 | W24: J14 | X24: H
B25: GROOTSWAGERS JOPPE | C25: BAYONNE AV | D25: J14H | E25: H | F25: 2004-03-11 | G25: 2.25 | H25: 10.2 | I25: 46 | J25: 21 | K25: 21 | L25: 429 | M25: 9 | N25: 17 | O25: 14 | P25: 18 | Q25: 11 | R25: 6 | S25: 19 | T25: 8 | U25: 93 | V25: 13.28571429 | W25: J14 | X25: H
B26: FERNANDEZ MATEO | C26: BAYONNE SN | D26: J14H | E26: H | F26: 2004-09-14 | G26: 1.95 | H26: 11.2 | I26: 40 | J26: 22 | K26: 18 | L26: 526 | M26: 9 | N26: 12 | O26: 20 | P26: 15 | Q26: 12 | R26: 4 | S26: 20 | T26: 8 | U26: 91 | V26: 13 | W26: J14 | X26: H
B27: DREYFUS NOAH | C27: BAYONNE AV | D27: J14H | E27: H | F27: 2004-04-23 | G27: 2 | H27: 10.2 | I27: 43 | J27: 29 | K27: 23 | L27: 365 | M27: 9 | N27: 13 | O27: 14 | P27: 16 | Q27: 19 | R27: 8 | S27: 13 | T27: 8 | U27: 91 | V27: 13 | W27: J14 | X27: H
B28: FONTAINE THIBAUT | C28: LIBOS-FUMEL CN | D28: J14H | E28: H | F28: 2004-03-24 | G28: 2.04 | H28: 11.17 | I28: 32 | J28: 30 | K28: 21 | L28: 522 | M28: 7.75 | N28: 13 | O28: 20 | P28: 11 | Q28: 20 | R28: 6 | S28: 20 | T28: 0 | U28: 90 | V28: 12.85714286 | W28: J14 | X28: H
B29: EL HAYANI MEDHY | C29: CASTILLON RC | D29: J14H | E29: H | F29: 2004-01-12 | G29: 2.01 | H29: 9.67 | I29: 44 | J29: 40 | K29: 24 | L29: 354 | M29: 9 | N29: 13 | O29: 11 | P29: 17 | Q29: 20 | R29: 9 | S29: 12 | T29: 8 | U29: 90 | V29: 12.85714286 | W29: J14 | X29: H
B30: SABITOV MARAT | C30: BAYONNE AV | D30: J14H | E30: H | F30: 2004-11-12 | G30: 2.05 | H30: 10.7 | I30: 44 | J30: 35 | K30: 20 | L30: 384 | M30: 7 | N30: 14 | O30: 18 | P30: 17 | Q30: 20 | R30: 5 | S30: 15 | T30: 0 | U30: 89 | V30: 12.71428571 | W30: J14 | X30: H
B31: FAUCHE ANTOINE | C31: COGNAC YRC | D31: J14H | E31: H | F31: 2004-05-08 | G31: 2.03 | H31: 10.9 | I31: 37 | J31: 30 | K31: 16 | L31: 369 | M31: 8.75 | N31: 13 | O31: 19 | P31: 13 | Q31: 20 | R31: 4 | S31: 13 | T31: 7 | U31: 89 | V31: 12.71428571 | W31: J14 | X31: H
B32: ALEMANY KYLIAN | C32: ANGOULEME AC | D32: J14H | E32: H | F32: 2004-03-15 | G32: 2.19 | H32: 10.97 | I32: 35 | J32: 20 | K32: 17 | L32: 519 | M32: 8.5 | N32: 16 | O32: 19 | P32: 12 | Q32: 10 | R32: 4 | S32: 20 | T32: 7 | U32: 88 | V32: 12.57142857 | W32: J14 | X32: H
B33: MAYOUX ADEL | C33: ANGOULEME AC | D33: J14H | E33: H | F33: 2004-03-17 | G33: 1.96 | H33: 10.08 | I33: 34 | J33: 30 | K33: 8 | L33: 438 | M33: 9.5 | N33: 12 | O33: 13 | P33: 12 | Q33: 20 | R33: 2 | S33: 20 | T33: 9 | U33: 88 | V33: 12.57142857 | W33: J14 | X33: H
B34: BOULARD ALEXIS | C34: CASTILLON RC | D34: J14H | E34: H | F34: 2004-11-03 | G34: 1.88 | H34: 10.38 | I34: 37 | J34: 35 | K34: 23 | L34: 375 | M34: 9 | N34: 10 | O34: 15 | P34: 13 | Q34: 20 | R34: 8 | S34: 14 | T34: 8 | U34: 88 | V34: 12.57142857 | W34: J14 | X34: H
B35: JAMME CHARLY | C35: BAYONNE AV | D35: J14H | E35: H | F35: 2004-05-01 | G35: 2.1 | H35: 10.9 | I35: 48 | J35: 30 | K35: 21 | L35: 317 | M35: 7 | N35: 15 | O35: 19 | P35: 19 | Q35: 20 | R35: 6 | S35: 8 | T35: 0 | U35: 87 | V35: 12.42857143 | W35: J14 | X35: H
B36: DIDIER MAXIME | C36: AVIRON LANDES | D36: J14H | E36: H | F36: 2004-09-09 | G36: 2.05 | H36: 11 | I36: 49 | J36: 50 | K36: 20 | L36: 306 | M36: 7 | N36: 14 | O36: 20 | P36: 19 | Q36: 20 | R36: 5 | S36: 7 | T36: 0 | U36: 85 | V36: 12.14285714 | W36: J14 | X36: H
B37: BANET MILO | C37: SAINTES CA | D37: J14H | E37: H | F37: 2004-11-14 | G37: 1.96 | H37: 10.06 | I37: 43 | J37: 31 | K37: 17 | L37: 420 | M37: 7.75 | N37: 12 | O37: 13 | P37: 16 | Q37: 20 | R37: 4 | S37: 19 | T37: 0 | U37: 84 | V37: 12 | W37: J14 | X37: H
B38: PIAZZA BATISTE | C38: SAINTES CA | D38: J13H | E38: H | F38: 2005-11-19 | G38: 1.95 | H38: 10.6 | I38: 32 | J38: 25 | K38: 19 | L38: 386 | M38: 10.25 | N38: 12 | O38: 17 | P38: 11 | Q38: 15 | R38: 4 | S38: 15 | T38: 10 | U38: 84 | V38: 12 | W38: J14 | X38: H
B39: MUTEL LUCAS | C39: BAYONNE AV | D39: J14H | E39: H | F39: 2004-03-14 | G39: 2.25 | H39: 12.4 | I39: 46 | J39: 12 | K39: 17 | L39: 441 | M39: 7 | N39: 17 | O39: 20 | P39: 18 | Q39: 4 | R39: 4 | S39: 20 | T39: 0 | U39: 83 | V39: 11.85714286 | W39: J14 | X39: H
B40: BRU LEO | C40: VILLENEUVE AV | D40: J14H | E40: H | F40: 2004-10-26 | G40: 1.94 | H40: 10.38 | I40: 36 | J40: 30 | K40: 20 | L40: 364 | M40: 8.25 | N40: 11 | O40: 15 | P40: 13 | Q40: 20 | R40: 5 | S40: 13 | T40: 6 | U40: 83 | V40: 11.85714286 | W40: J14 | X40: H
B41: PAILLAS AXEL | C41: VILLENEUVE AV | D41: J14H | E41: H | F41: 2004-05-08 | G41: 1.93 | H41: 10.32 | I41: 36 | J41: 28 | K41: 16 | L41: 511 | M41: 7.5 | N41: 11 | O41: 15 | P41: 13 | Q41: 18 | R41: 4 | S41: 20 | T41: 0 | U41: 81 | V41: 11.57142857 | W41: J14 | X41: H
B42: NAVARRO MATHEO | C42: LIBOURNE CN | D42: J13H | E42: H | F42: 2005-05-12 | G42: 1.87 | H42: 10.54 | I42: 38 | J42: 27 | K42: 21 | L42: 407 | M42: 6 | N42: 10 | O42: 16 | P42: 14 | Q42: 17 | R42: 6 | S42: 17 | T42: 0 | U42: 80 | V42: 11.42857143 | W42: J14 | X42: H
B43: ELISSALDE IBAN | C43: BAYONNE SN | D43: J14H | E43: H | F43: 2004-11-24 | G43: 1.8 | H43: 9.7 | I43: 43 | J43: 42 | K43: 23 | L43: 396 | M43: 5 | N43: 9 | O43: 11 | P43: 16 | Q43: 20 | R43: 8 | S43: 16 | T43: 0 | U43: 80 | V43: 11.42857143 | W43: J14 | X43: H
B44: ADAMS CHARLESEDOUARD | C44: CHATELLERAULT SN | D44: J14H | E44: H | F44: 2004-07-04 | G44: 1.95 | H44: 10.41 | I44: 34 | J44: 45 | K44: 19 | L44: 383 | M44: 7.75 | N44: 12 | O44: 16 | P44: 12 | Q44: 20 | R44: 4 | S44: 15 | T44: 0 | U44: 79 | V44: 11.28571429 | W44: J14 | X44: H
B45: KULCHYNSKYI YAROSLAV | C45: LIBOURNE CN | D45: J14H | E45: H | F45: 2004-08-17 | G45: 2.01 | H45: 11.22 | I45: 35 | J45: 40 | K45: 22 | L45: 305 | M45: 6 | N45: 13 | O45: 20 | P45: 12 | Q45: 20 | R45: 7 | S45: 7 | T45: 0 | U45: 79 | V45: 11.28571429 | W45: J14 | X45: H
B46: MATYKA LOUIS | C46: LIBOURNE CN | D46: J14H | E46: H | F46: 2004-05-18 | G46: 1.78 | H46: 9.49 | I46: 31 | J46: 26 | K46: 24 | L46: 436 | M46: 8 | N46: 8 | O46: 9 | P46: 10 | Q46: 16 | R46: 9 | S46: 20 | T46: 6 | U46: 78 | V46: 11.14285714 | W46: J14 | X46: H
B47: VANMANSART TRISTAN | C47: SAINTE FOY CN | D47: J14H | E47: H | F47: 2004-02-11 | G47: 1.66 | H47: 9.6 | I47: 36 | J47: 39 | K47: 22 | L47: 490 | M47: 0 | N47: 6 | O47: 10 | P47: 13 | Q47: 20 | R47: 7 | S47: 20 | T47: 0 | U47: 76 | V47: 10.85714286 | W47: J14 | X47: H
B48: DUTEIL LUCAS | C48: ANGOULEME AC | D48: J13H | E48: H | F48: 2005-03-18 | G48: 1.93 | H48: 10.4 | I48: 36 | J48: 26 | K48: 17 | L48: 385 | M48: 6.5 | N48: 11 | O48: 16 | P48: 13 | Q48: 16 | R48: 4 | S48: 15 | T48: 0 | U48: 75 | V48: 10.71428571 | W48: J14 | X48: H
B49: FELTRIN ARTHUR | C49: BERGERAC SN | D49: J13H | E49: H | F49: 2005-08-20 | G49: 1.89 | H49: 9.87 | I49: 28 | J49: 28 | K49: 26 | L49: 274 | M49: 10.5 | N49: 10 | O49: 12 | P49: 9 | Q49: 18 | R49: 11 | S49: 4 | T49: 11 | U49: 75 | V49: 10.71428571 | W49: J14 | X49: H
B50: LABRADOR GASPARD | C50: BAYONNE AV | D50: J14H | E50: H | F50: 2004-10-05 | G50: 1.85 | H50: 10.2 | I50: 42 | J50: 22 | K50: 17 | L50: 323 | M50: 9 | N50: 10 | O50: 14 | P50: 16 | Q50: 12 | R50: 4 | S50: 9 | T50: 8 | U50: 73 | V50: 10.42857143 | W50: J14 | X50: H
B51: RECIO ARNAUD | C51: BAYONNE SN | D51: J14H | E51: H | F51: 2004-09-06 | G51: 1.95 | H51: 9.8 | I51: 41 | J51: 36 | K51: 19 | L51: 328 | M51: 4 | N51: 12 | O51: 12 | P51: 15 | Q51: 20 | R51: 4 | S51: 9 | T51: 0 | U51: 72 | V51: 10.28571429 | W51: J14 | X51: H
B52: FARINES JULES | C52: BORDEAUX EN | D52: J13H | E52: H | F52: 2005-03-23 | G52: 1.92 | H52: 10.93 | I52: 32 | J52: 10 | K52: 24 | L52: 348 | M52: 8 | N52: 11 | O52: 19 | P52: 11 | Q52: 4 | R52: 9 | S52: 11 | T52: 6 | U52: 71 | V52: 10.14285714 | W52: J14 | X52: H
B53: MATE KEVIN | C53: BAYONNE SN | D53: =IF(B53<>"","J"&((2018)-(YEAR(F53)))&E53,"") -> J13H | E53: H | F53: 2005-05-12 | G53: 2 | H53: 10.6 | I53: 38 | J53: 26 | K53: 18 | L53: 193 | M53: 8 | N53: 13 | O53: 17 | P53: 14 | Q53: 16 | R53: 4 | S53: 0 | T53: 6 | U53: 70 | V53: 10 | W53: J14 | X53: H
B54: ALEXANDRE LUCAS | C54: LIBOURNE CN | D54: J14H | E54: H | F54: 2004-04-21 | G54: 1.88 | H54: 10.52 | I54: 35 | J54: 11 | K54: 18 | L54: 403 | M54: 8 | N54: 10 | O54: 16 | P54: 12 | Q54: 4 | R54: 4 | S54: 17 | T54: 6 | U54: 69 | V54: 9.857142857 | W54: J14 | X54: H
B55: JANZEGERS THÉO | C55: BAYONNE AV | D55: J14H | E55: H | F55: 2004-04-10 | G55: 2.1 | H55: 10 | I55: 43 | J55: 16 | K55: 16 | L55: 387 | M55: 7 | N55: 15 | O55: 13 | P55: 16 | Q55: 6 | R55: 4 | S55: 15 | T55: 0 | U55: 69 | V55: 9.857142857 | W55: J14 | X55: H
B56: LAGOARDE-SEGOT FAUSTO | C56: BAYONNE AV | D56: J14H | E56: H | F56: 2004-11-26 | G56: 1.8 | H56: 10.4 | I56: 38 | J56: 35 | K56: 18 | L56: 280 | M56: 6 | N56: 9 | O56: 16 | P56: 14 | Q56: 20 | R56: 4 | S56: 5 | T56: 0 | U56: 68 | V56: 9.714285714 | W56: J14 | X56: H
B57: LAMURS ALEXIS | C57: CHATELLERAULT SN | D57: J14H | E57: H | F57: 2004-05-06 | G57: 1.65 | H57: 9.75 | I57: 29 | J57: 26 | K57: 20 | L57: 521 | M57: 5.75 | N57: 6 | O57: 11 | P57: 9 | Q57: 16 | R57: 5 | S57: 20 | T57: 0 | U57: 67 | V57: 9.571428571 | W57: J14 | X57: H
B58: LARRUE ANGELO | C58: CASTILLON RC | D58: J14H | E58: H | F58: 2004-10-11 | G58: 1.69 | H58: 9.85 | I58: 32 | J58: 33 | K58: 18 | L58: 379 | M58: 6.5 | N58: 6 | O58: 12 | P58: 11 | Q58: 20 | R58: 4 | S58: 14 | T58: 0 | U58: 67 | V58: 9.571428571 | W58: J14 | X58: H
B59: BOIREAU ANTOINE | C59: COGNAC YRC | D59: J14H | E59: H | F59: 2004-09-26 | G59: 1.68 | H59: 9.83 | I59: 39 | J59: 33 | K59: 15 | L59: 264 | M59: 9.5 | N59: 6 | O59: 12 | P59: 14 | Q59: 20 | R59: 3 | S59: 3 | T59: 9 | U59: 67 | V59: 9.571428571 | W59: J14 | X59: H
B60: SAULAS LEO | C60: CHATELLERAULT SN | D60: J14H | E60: H | F60: 2004-10-15 | G60: 1.8 | H60: 9.72 | I60: 37 | J60: 20 | K60: 14 | L60: 513 | M60: 5 | N60: 9 | O60: 11 | P60: 13 | Q60: 10 | R60: 3 | S60: 20 | T60: 0 | U60: 66 | V60: 9.428571429 | W60: J14 | X60: H
B61: POIRIER HUGUES | C61: BAYONNE SN | D61: J14H | E61: H | F61: 2004-11-02 | G61: 1.8 | H61: 9.25 | I61: 37 | J61: 25 | K61: 19 | L61: 405 | M61: 3 | N61: 9 | O61: 8 | P61: 13 | Q61: 15 | R61: 4 | S61: 17 | T61: 0 | U61: 66 | V61: 9.428571429 | W61: J14 | X61: H
B62: DALMASSO VIRGILE | C62: LIBOURNE CN | D62: J13H | E62: H | F62: 2005-03-26 | G62: 1.7 | H62: 9.98 | I62: 28 | J62: 35 | K62: 22 | L62: 263 | M62: 8.5 | N62: 7 | O62: 13 | P62: 9 | Q62: 20 | R62: 7 | S62: 3 | T62: 7 | U62: 66 | V62: 9.428571429 | W62: J14 | X62: H
B63: RIGLET ERWAN | C63: AVIRON LANDES | D63: J14H | E63: H | F63: 2004-03-18 | G63: 1.9 | H63: 9.7 | I63: 40 | J63: 13 | K63: 15 | L63: 525 | M63: 5 | N63: 11 | O63: 11 | P63: 15 | Q63: 5 | R63: 3 | S63: 20 | T63: 0 | U63: 65 | V63: 9.285714286 | W63: J14 | X63: H
B64: MAZOUAUD JULES | C64: BERGERAC SN | D64: J14H | E64: H | F64: 2004-08-30 | G64: 1.9 | H64: 9.62 | I64: 28 | J64: 20 | K64: 20 | L64: 431 | M64: 5 | N64: 11 | O64: 10 | P64: 9 | Q64: 10 | R64: 5 | S64: 20 | T64: 0 | U64: 65 | V64: 9.285714286 | W64: J14 | X64: H
B65: LEGER CLEMENT | C65: COGNAC YRC | D65: J14H | E65: H | F65: 2004-09-17 | G65: 1.59 | H65: 8.7 | I65: 58 | J65: 24 | K65: 20 | L65: 402 | M65: 6.5 | N65: 4 | O65: 5 | P65: 20 | Q65: 14 | R65: 5 | S65: 17 | T65: 0 | U65: 65 | V65: 9.285714286 | W65: J14 | X65: H
B66: COSSON MICHEL | C66: ST SYLVESTRE CNSS | D66: J14H | E66: H | F66: 2004-09-27 | G66: 1.69 | H66: 10.39 | I66: 32 | J66: 17 | K66: 23 | L66: 353 | M66: 8 | N66: 6 | O66: 15 | P66: 11 | Q66: 7 | R66: 8 | S66: 12 | T66: 6 | U66: 65 | V66: 9.285714286 | W66: J14 | X66: H
B67: DAUNIS CLEMENT | C67: SAINTES CA | D67: J14H | E67: H | F67: 2004-07-10 | G67: 1.81 | H67: 9.6 | I67: 35 | J67: 20 | K67: 15 | L67: 456 | M67: 7.5 | N67: 9 | O67: 10 | P67: 12 | Q67: 10 | R67: 3 | S67: 20 | T67: 0 | U67: 64 | V67: 9.142857143 | W67: J14 | X67: H
B68: PIHOREL AXEL | C68: COGNAC YRC | D68: J14H | E68: H | F68: 2004-03-27 | G68: 1.8 | H68: 9.38 | I68: 34 | J68: 14 | K68: 23 | L68: 471 | M68: 7.75 | N68: 9 | O68: 9 | P68: 12 | Q68: 5 | R68: 8 | S68: 20 | T68: 0 | U68: 63 | V68: 9 | W68: J14 | X68: H
B69: LAMOULIE ELIOTT | C69: AVIRON LANDES | D69: J14H | E69: H | F69: 2004-03-22 | G69: 1.95 | H69: 9.6 | I69: 39 | J69: 25 | K69: 12 | L69: 320 | M69: 7 | N69: 12 | O69: 10 | P69: 14 | Q69: 15 | R69: 3 | S69: 9 | T69: 0 | U69: 63 | V69: 9 | W69: J14 | X69: H
B70: ANDREO RUBEN | C70: AVIRON LANDES | D70: J14H | E70: H | F70: 2004-10-25 | G70: 1.7 | H70: 9.7 | I70: 41 | J70: 16 | K70: 15 | L70: 437 | M70: 2 | N70: 7 | O70: 11 | P70: 15 | Q70: 6 | R70: 3 | S70: 20 | T70: 0 | U70: 62 | V70: 8.857142857 | W70: J14 | X70: H
B71: GAUDRON EDOUARD | C71: BORDEAUX EN | D71: J14H | E71: H | F71: 2004-10-22 | G71: 1.69 | H71: 9.02 | I71: 30 | J71: 26 | K71: 24 | L71: 284 | M71: 10 | N71: 6 | O71: 6 | P71: 10 | Q71: 16 | R71: 9 | S71: 5 | T71: 10 | U71: 62 | V71: 8.857142857 | W71: J14 | X71: H
B72: GARDETTE ALEXANDRE | C72: BAYONNE AV | D72: J14H | E72: H | F72: 2004-05-20 | G72: 1.8 | H72: 9.5 | I72: 38 | J72: 27 | K72: 15 | L72: 266 | M72: 8 | N72: 9 | O72: 10 | P72: 14 | Q72: 17 | R72: 3 | S72: 3 | T72: 6 | U72: 62 | V72: 8.857142857 | W72: J14 | X72: H
B73: RAMES GABIN | C73: LIBOURNE CN | D73: J14H | E73: H | F73: 2004-05-20 | G73: 0 | H73: 9.98 | I73: 37 | J73: 45 | K73: 16 | L73: 254 | M73: 10.25 | N73: 0 | O73: 13 | P73: 13 | Q73: 20 | R73: 4 | S73: 2 | T73: 10 | U73: 62 | V73: 8.857142857 | W73: J14 | X73: H
B74: MARTIN AXEL | C74: MARMANDE AV | D74: J13H | E74: H | F74: 2005-08-06 | G74: 1.79 | H74: 10.17 | I74: 39 | J74: 22 | K74: 28 | L74: 247 | M74: 5 | N74: 8 | O74: 14 | P74: 14 | Q74: 12 | R74: 13 | S74: 1 | T74: 0 | U74: 62 | V74: 8.857142857 | W74: J14 | X74: H
B75: BERNETEAU WILLIAM | C75: LIBOURNE CN | D75: J13H | E75: H | F75: 2005-11-18 | G75: 1.86 | H75: 9.67 | I75: 27 | J75: 45 | K75: 22 | L75: 183 | M75: 8.25 | N75: 10 | O75: 11 | P75: 8 | Q75: 20 | R75: 7 | S75: 0 | T75: 6 | U75: 62 | V75: 8.857142857 | W75: J14 | X75: H
B76: DESCHARLES JULIEN | C76: CHATELLERAULT SN | D76: J14H | E76: H | F76: 2004-11-30 | G76: 1.82 | H76: 9.73 | I76: 31 | J76: 22 | K76: 17 | L76: 370 | M76: 6.5 | N76: =IF(G76<>"",IF(ISERROR(IF(E76="F",VLOOKUP(G76,saut_f,3,TRUE),VLOOKUP(G76,saut_m,2,TRUE))),0,IF(E76="F",VLOOKUP(G76,saut_f,3,TRUE),VLOOKUP(G76,saut_m,2,TRUE))),"") -> 9 | O76: =IF(H76<>"",IF(ISERROR(IF(E76="F",VLOOKUP(H76,foulees_f,3,TRUE),VLOOKUP(H76,foulees_m,2,TRUE))),0,IF(E76="F",VLOOKUP(H76,foulees_f,3,TRUE),VLOOKUP(H76,foulees_m,2,TRUE))),"") -> 11 | P76: =IF(I76<>"",IF(ISERROR(IF(E76="F",VLOOKUP(I76,sauth_f,3,TRUE),VLOOKUP(I76,sauth_m,2,TRUE))),0,IF(E76="F",VLOOKUP(I76,sauth_f,3,TRUE),VLOOKUP(I76,sauth_m,2,TRUE))),"") -> 10 | Q76: =IF(J76<>"",IF(ISERROR(IF(E76="F",VLOOKUP(J76,pompes_f,3,TRUE),VLOOKUP(J76,pompes_m,2,TRUE))),0,IF(E76="F",VLOOKUP(J76,pompes_f,3,TRUE),VLOOKUP(J76,pompes_m,2,TRUE))),"") -> 12 | R76: =IF(K76<>"",IF(ISERROR(IF(E76="F",VLOOKUP(K76,abdos_f,3,TRUE),VLOOKUP(K76,abdos_m,2,TRUE))),0,IF(E76="F",VLOOKUP(K76,abdos_f,3,TRUE),VLOOKUP(K76,abdos_m,2,TRUE))),"") -> 4 | S76: =IF(L76<>"",IF(ISERROR(IF(E76="F",VLOOKUP(L76,ergo_f,3,TRUE),VLOOKUP(L76,ergo_m,2,TRUE))),0,IF(E76="F",VLOOKUP(L76,ergo_f,3,TRUE),VLOOKUP(L76,ergo_m,2,TRUE))),"") -> 14 | T76: =IF(M76<>"",IF(ISERROR(IF(E76="F",VLOOKUP(M76,nav_f,3,TRUE),VLOOKUP(M76,nav_m,2,TRUE))),0,IF(E76="F",VLOOKUP(M76,nav_f,3,TRUE),VLOOKUP(M76,nav_m,2,TRUE)) ),"") -> 0 | U76: =SUM(T76,N76,O76,P76,Q76,R76,S76) -> 60 | V76: =IF(ISERROR(AVERAGE(T76,N76,O76,P76,Q76,R76,S76)),"0",AVERAGE(T76,N76,O76,P76,Q76,R76,S76)) -> 8.571428571 | W76: =IF(D76<>"",(IF(OR(LEFT(D76,3)="J13",LEFT(D76,3)="J14"),"J14",IF(OR(LEFT(D76,3)="J11",LEFT(D76,3)="J12"),"J12","J10"))),"") -> J14 | X76: =E76 -> H
B77: LARGE LOGAN | C77: SAINTES CA | D77: J13H | E77: H | F77: 2005-03-18 | G77: 1.72 | H77: 10 | I77: 30 | J77: 22 | K77: 17 | L77: 361 | M77: 7 | N77: 7 | O77: 13 | P77: 10 | Q77: 12 | R77: 4 | S77: 13 | T77: 0 | U77: 59 | V77: 8.428571429 | W77: J14 | X77: H
B78: MARTIN ROMEO | C78: COGNAC YRC | D78: J14H | E78: H | F78: 2004-03-19 | G78: 1.42 | H78: 9.9 | I78: 32 | J78: 21 | K78: 19 | L78: 424 | M78: 7.75 | N78: 1 | O78: 12 | P78: 11 | Q78: 11 | R78: 4 | S78: 19 | T78: 0 | U78: 58 | V78: 8.285714286 | W78: J14 | X78: H
B79: ALLIOUX ANTONIN | C79: SAINTES CA | D79: J14H | E79: H | F79: 2004-08-28 | G79: 1.84 | H79: 10.54 | I79: 31 | J79: 12 | K79: 17 | L79: 380 | M79: 5.25 | N79: 9 | O79: 16 | P79: 10 | Q79: 4 | R79: 4 | S79: 15 | T79: 0 | U79: 58 | V79: 8.285714286 | W79: J14 | X79: H
B80: SHIGETOMI YAN | C80: BAYONNE AV | D80: J14H | E80: H | F80: 2004-02-20 | G80: 1.8 | H80: 9.6 | I80: 41 | J80: 20 | K80: 13 | L80: 267 | M80: 9 | N80: 9 | O80: 10 | P80: 15 | Q80: 10 | R80: 3 | S80: 3 | T80: 8 | U80: 58 | V80: 8.285714286 | W80: J14 | X80: H
B81: RIBIOLLET MATISSE | C81: AVIRON LANDES | D81: J14H | E81: H | F81: 2004-01-31 | G81: 1.9 | H81: 9.6 | I81: 44 | J81: 10 | K81: 18 | L81: 337 | M81: 6 | N81: 11 | O81: 10 | P81: 17 | Q81: 4 | R81: 4 | S81: 10 | T81: 0 | U81: 56 | V81: 8 | W81: J14 | X81: H
B82: WERNER LUCIEN | C82: LIBOURNE CN | D82: J13H | E82: H | F82: 2005-01-29 | G82: 1.8 | H82: 9.84 | I82: 32 | J82: 19 | K82: 20 | L82: 256 | M82: 9 | N82: 9 | O82: 12 | P82: 11 | Q82: 9 | R82: 5 | S82: 2 | T82: 8 | U82: 56 | V82: 8 | W82: J14 | X82: H
B83: AUDET ANTOINE | C83: BORDEAUX EN | D83: J13H | E83: H | F83: 2005-07-18 | G83: 1.91 | H83: 10.12 | I83: 32 | J83: 21 | K83: 15 | L83: 233 | M83: 8 | N83: 11 | O83: 14 | P83: 11 | Q83: 11 | R83: 3 | S83: 0 | T83: 6 | U83: 56 | V83: 8 | W83: J14 | X83: H
B84: DI SACCO PAUL | C84: LIBOURNE CN | D84: J14H | E84: H | F84: 2004-07-03 | G84: 1.59 | H84: 9.49 | I84: 31 | J84: 15 | K84: 25 | L84: 347 | M84: 8.25 | N84: 4 | O84: 9 | P84: 10 | Q84: 5 | R84: 10 | S84: 11 | T84: 6 | U84: 55 | V84: 7.857142857 | W84: J14 | X84: H
B85: DEWOST NOA | C85: BERGERAC SN | D85: =IF(B85<>"","J"&((2018)-(YEAR(F85)))&E85,"") -> J13H | E85: H | F85: 2005-11-25 | G85: 1.48 | H85: 8.86 | I85: 33 | J85: 25 | K85: 29 | L85: 197 | M85: 9.25 | N85: 2 | O85: 5 | P85: 11 | Q85: 15 | R85: 14 | S85: 0 | T85: 8 | U85: 55 | V85: 7.857142857 | W85: J14 | X85: H
B86: GABORIT THEO | C86: COGNAC YRC | D86: J14H | E86: H | F86: 2004-10-30 | G86: 1.6 | H86: 8.7 | I86: 26 | J86: 20 | K86: 21 | L86: 332 | M86: 9 | N86: 5 | O86: 5 | P86: 8 | Q86: 10 | R86: 6 | S86: 10 | T86: 8 | U86: 52 | V86: 7.428571429 | W86: J14 | X86: H
B87: BIARROTTE LEO | C87: BAYONNE SN | D87: J14H | E87: H | F87: 2004-07-08 | G87: 1.8 | H87: 8.8 | I87: 41 | J87: 40 | K87: 14 | L87: 237 | M87: 6 | N87: 9 | O87: 5 | P87: 15 | Q87: 20 | R87: 3 | S87: 0 | T87: 0 | U87: 52 | V87: 7.428571429 | W87: J14 | X87: H
B88: LOBBRECHT SACHA | C88: BAYONNE AV | D88: J13H | E88: H | F88: 2005-06-22 | G88: 1.85 | H88: 10.5 | I88: 37 | J88: 20 | K88: 14 | L88: 201 | M88: 6 | N88: 10 | O88: 16 | P88: 13 | Q88: 10 | R88: 3 | S88: 0 | T88: 0 | U88: 52 | V88: 7.428571429 | W88: J14 | X88: H
B89: HUGÉ LOUIS | C89: BAYONNE AV | D89: J13H | E89: H | F89: 2005-05-19 | G89: 1.95 | H89: 10.3 | I89: 35 | J89: 17 | K89: 17 | L89: 226 | M89: 7 | N89: 12 | O89: 15 | P89: 12 | Q89: 7 | R89: 4 | S89: 0 | T89: 0 | U89: 50 | V89: 7.142857143 | W89: J14 | X89: H
B90: LASSERRE HUGO | C90: SAINTES CA | D90: J13H | E90: H | F90: 2005-04-12 | G90: 1.71 | H90: 8.63 | I90: 25 | J90: 31 | K90: 16 | L90: 202 | M90: 9 | N90: 7 | O90: 4 | P90: 7 | Q90: 20 | R90: 4 | S90: 0 | T90: 8 | U90: 50 | V90: 7.142857143 | W90: J14 | X90: H
B91: LABEYRIE CLEMENT | C91: AVIRON LANDES | D91: J14H | E91: H | F91: 2004-05-29 | G91: 1.45 | H91: 9 | I91: 35 | J91: 19 | K91: 16 | L91: 382 | M91: 6 | N91: 2 | O91: 6 | P91: 12 | Q91: 9 | R91: 4 | S91: 15 | T91: 0 | U91: 48 | V91: 6.857142857 | W91: J14 | X91: H
B92: SENOGLES LOUIE | C92: AVIRON LANDES | D92: J13H | E92: H | F92: 2005-04-11 | G92: 1.7 | H92: 8.45 | I92: 33 | J92: 31 | K92: 21 | L92: 238 | M92: 6 | N92: 7 | O92: 3 | P92: 11 | Q92: 20 | R92: 6 | S92: 0 | T92: 0 | U92: 47 | V92: 6.714285714 | W92: J14 | X92: H
B93: GARAY LOGAN | C93: BAYONNE SN | D93: J14H | E93: H | F93: 2004-11-26 | G93: 1.6 | H93: 8 | I93: 29 | J93: 36 | K93: 15 | L93: 327 | M93: 6 | N93: 5 | O93: 0 | P93: 9 | Q93: 20 | R93: 3 | S93: 9 | T93: 0 | U93: 46 | V93: 6.571428571 | W93: J14 | X93: H
B94: PROMIS ARTHUR | C94: SAINTES CA | D94: J14H | E94: H | F94: 2004-03-05 | G94: 1.72 | H94: 8.92 | I94: 27 | J94: 10 | K94: 14 | L94: 392 | M94: 7.5 | N94: 7 | O94: 6 | P94: 8 | Q94: 4 | R94: 3 | S94: 16 | T94: 0 | U94: 44 | V94: 6.285714286 | W94: J14 | X94: H
B95: VAILLANT BAPTISTE | C95: MARMANDE AV | D95: J13H | E95: H | F95: 2005-03-24 | G95: 1.68 | H95: 9.08 | I95: 28 | J95: 21 | K95: 22 | L95: 275 | M95: 7.75 | N95: 6 | O95: 7 | P95: 9 | Q95: 11 | R95: 7 | S95: 4 | T95: 0 | U95: 44 | V95: 6.285714286 | W95: J14 | X95: H
B96: LAMBERT HUGO | C96: LIBOS-FUMEL CN | D96: J14H | E96: H | F96: 2004-09-21 | G96: 1.58 | H96: 9.37 | I96: 25 | J96: 30 | K96: 18 | L96: 183 | M96: 6.5 | N96: 4 | O96: 9 | P96: 7 | Q96: 20 | R96: 4 | S96: 0 | T96: 0 | U96: 44 | V96: 6.285714286 | W96: J14 | X96: H
B97: GONDAT MAXIME | C97: CHATELLERAULT SN | D97: J14H | E97: H | F97: 2004-03-08 | G97: 1.99 | H97: 8.56 | I97: 37 | J97: 14 | K97: 15 | L97: 280 | M97: 4.15 | N97: 12 | O97: 4 | P97: 13 | Q97: 5 | R97: 3 | S97: 5 | T97: 0 | U97: 42 | V97: 6 | W97: J14 | X97: H
B98: ALLA LOUIS | C98: LIBOURNE CN | D98: J13H | E98: H | F98: 2005-08-30 | G98: 1.64 | H98: 9.51 | I98: 23 | J98: 19 | K98: 21 | L98: 209 | M98: 8.25 | N98: 5 | O98: 10 | P98: 6 | Q98: 9 | R98: 6 | S98: 0 | T98: 6 | U98: 42 | V98: 6 | W98: J14 | X98: H
B99: SAPOZHNIKOV IGNAT | C99: CASTILLON RC | D99: J14H | E99: H | F99: 2004-07-03 | G99: 1.51 | H99: 9 | I99: 24 | J99: 29 | K99: 22 | L99: 203 | M99: 5 | N99: 3 | O99: 6 | P99: 7 | Q99: 19 | R99: 7 | S99: 0 | T99: 0 | U99: 42 | V99: 6 | W99: J14 | X99: H
B100: LE ROY BAPTISTE | C100: SAINTES CA | D100: J14H | E100: H | F100: 2004-08-25 | G100: 1.7 | H100: 8.75 | I100: 31 | J100: 15 | K100: 22 | L100: 306 | M100: 7.5 | N100: 7 | O100: 5 | P100: 10 | Q100: 5 | R100: 7 | S100: 7 | T100: 0 | U100: 41 | V100: 5.857142857 | W100: J14 | X100: H
B101: VERNA CLEMENT | C101: CHATELLERAULT SN | D101: J14H | E101: H | F101: 2004-02-01 | G101: 1.47 | H101: 9.48 | I101: 36 | J101: 20 | K101: 15 | L101: 278 | M101: 5 | N101: 2 | O101: 9 | P101: 13 | Q101: 10 | R101: 3 | S101: 4 | T101: 0 | U101: 41 | V101: 5.857142857 | W101: J14 | X101: H
B102: SAPOZHNIKOV GAVRIIL | C102: CASTILLON RC | D102: J14H | E102: H | F102: 2004-07-03 | G102: 1.62 | H102: 9.03 | I102: 21 | J102: 24 | K102: 26 | L102: 186 | M102: 5 | N102: 5 | O102: 6 | P102: 5 | Q102: 14 | R102: 11 | S102: 0 | T102: 0 | U102: 41 | V102: 5.857142857 | W102: J14 | X102: H
B103: HEREDIA NATHAN | C103: BERGERAC SN | D103: J14H | E103: H | F103: 2004-07-07 | G103: 1.57 | H103: 9.31 | I103: 20 | J103: 7 | K103: 18 | L103: 391 | M103: 6 | N103: 4 | O103: 8 | P103: 5 | Q103: 3 | R103: 4 | S103: 16 | T103: 0 | U103: 40 | V103: 5.714285714 | W103: J14 | X103: H
B104: CANDEIAS ENZO | C104: BAYONNE SN | D104: J14H | E104: H | F104: 2004-09-15 | G104: 1.5 | H104: 7.6 | I104: 30 | J104: 24 | K104: 13 | L104: 334 | M104: 3 | N104: 3 | O104: 0 | P104: 10 | Q104: 14 | R104: 3 | S104: 10 | T104: 0 | U104: 40 | V104: 5.714285714 | W104: J14 | X104: H
B105: GODBILLOT GABRIEL | C105: SAINTE FOY CN | D105: J14H | E105: H | F105: 2004-06-23 | G105: 1.61 | H105: 8.86 | I105: 34 | J105: 19 | K105: 24 | L105: 226 | M105: 6.75 | N105: 5 | O105: 5 | P105: 12 | Q105: 9 | R105: 9 | S105: 0 | T105: 0 | U105: 40 | V105: 5.714285714 | W105: J14 | X105: H
B106: ANGOUILLANT GABRIEL | C106: MARMANDE AV | D106: J13H | E106: H | F106: 2005-11-30 | G106: 1.59 | H106: 9.15 | I106: 30 | J106: 22 | K106: 21 | L106: 188 | M106: 5 | N106: 4 | O106: 7 | P106: 10 | Q106: 12 | R106: 6 | S106: 0 | T106: 0 | U106: 39 | V106: 5.571428571 | W106: J14 | X106: H
B107: CASSAN VIRGILE | C107: LIBOURNE CN | D107: J13H | E107: H | F107: 2005-09-03 | G107: 1.7 | H107: 9.16 | I107: 23 | J107: 25 | K107: 18 | L107: 181 | M107: 5 | N107: 7 | O107: 7 | P107: 6 | Q107: 15 | R107: 4 | S107: 0 | T107: 0 | U107: 39 | V107: 5.571428571 | W107: J14 | X107: H
B108: DOUSSINEAU MATHIAS | C108: SAINTES CA | D108: J13H | E108: H | F108: 2005-04-04 | G108: 1.69 | H108: 8.88 | I108: 34 | J108: 20 | K108: 17 | L108: 240 | M108: 5.25 | N108: 6 | O108: 5 | P108: 12 | Q108: 10 | R108: 4 | S108: 1 | T108: 0 | U108: 38 | V108: 5.428571429 | W108: J14 | X108: H
B109: PEUREUX EVEN | C109: CHATELLERAULT SN | D109: J14H | E109: H | F109: 2004-01-22 | G109: 1.46 | H109: 8.22 | I109: 30 | J109: 30 | K109: 17 | L109: 230 | M109: 4.5 | N109: 2 | O109: 2 | P109: 10 | Q109: 20 | R109: 4 | S109: 0 | T109: 0 | U109: 38 | V109: 5.428571429 | W109: J14 | X109: H
B110: LAVERGNE CLEMENT | C110: ANGOULEME AC | D110: J13H | E110: H | F110: 2005-12-14 | G110: 1.65 | H110: 9.25 | I110: 31 | J110: 20 | K110: 17 | L110: 221 | M110: 4 | N110: 6 | O110: 8 | P110: 10 | Q110: 10 | R110: 4 | S110: 0 | T110: 0 | U110: 38 | V110: 5.428571429 | W110: J14 | X110: H
B111: HAVET ROMAIN | C111: BERGERAC SN | D111: J13H | E111: H | F111: 2005-05-06 | G111: 1.69 | H111: 8.77 | I111: 33 | J111: 15 | K111: 26 | L111: 200 | M111: 6.75 | N111: 6 | O111: 5 | P111: 11 | Q111: 5 | R111: 11 | S111: 0 | T111: 0 | U111: 38 | V111: 5.428571429 | W111: J14 | X111: H
B112: DUFAU ROBIN | C112: MARMANDE AV | D112: J14H | E112: H | F112: 2004-05-13 | G112: 1.45 | H112: 8.23 | I112: 34 | J112: 5 | K112: 21 | L112: 362 | M112: 5.75 | N112: 2 | O112: 2 | P112: 12 | Q112: 2 | R112: 6 | S112: 13 | T112: 0 | U112: 37 | V112: 5.285714286 | W112: J14 | X112: H
B113: BERGUIN-NOIRANT MAXIME | C113: BERGERAC SN | D113: J13H | E113: H | F113: 2005-10-05 | G113: 1.67 | H113: 9.31 | I113: 26 | J113: 10 | K113: 21 | L113: 283 | M113: 5 | N113: 6 | O113: 8 | P113: 8 | Q113: 4 | R113: 6 | S113: 5 | T113: 0 | U113: 37 | V113: 5.285714286 | W113: J14 | X113: H
B114: DARBEAUD CHARLY | C114: ANGOULEME AC | D114: J13H | E114: H | F114: 2005-11-02 | G114: 1.57 | H114: 9.62 | I114: 31 | J114: 20 | K114: 14 | L114: 226 | M114: 7 | N114: 4 | O114: 10 | P114: 10 | Q114: 10 | R114: 3 | S114: 0 | T114: 0 | U114: 37 | V114: 5.285714286 | W114: J14 | X114: H
B115: LECHARDOY TRISTAN | C115: AVIRON LANDES | D115: =IF(B115<>"","J"&((2018)-(YEAR(F115)))&E115,"") -> J14H | E115: H | F115: 2004-02-05 | G115: 1.7 | H115: 8.6 | I115: 30 | J115: 6 | K115: 16 | L115: 321 | M115: 5 | N115: 7 | O115: 4 | P115: 10 | Q115: 2 | R115: 4 | S115: 9 | T115: 0 | U115: 36 | V115: 5.142857143 | W115: J14 | X115: H
B116: LAUCIRICA XUHAR | C116: HENDAYE EAE | D116: J14H | E116: H | F116: 2004-08-03 | G116: 1.85 | H116: 9.1 | I116: 29 | J116: 16 | K116: 14 | L116: 247 | M116: 5 | N116: 10 | O116: 7 | P116: 9 | Q116: 6 | R116: 3 | S116: 1 | T116: 0 | U116: 36 | V116: 5.142857143 | W116: J14 | X116: H
B117: ALEXIS ANDY | C117: LIBOURNE CN | D117: J13H | E117: H | F117: 2005-07-30 | G117: 1.6 | H117: 9.19 | I117: 23 | J117: 24 | K117: 19 | L117: 203 | M117: 4 | N117: 5 | O117: 7 | P117: 6 | Q117: 14 | R117: 4 | S117: 0 | T117: 0 | U117: 36 | V117: 5.142857143 | W117: J14 | X117: H
B118: GONCALVES THOMAS | C118: VILLENEUVE AV | D118: J13H | E118: H | F118: 2005-11-06 | G118: 1.55 | H118: 8.47 | I118: 24 | J118: 28 | K118: 19 | L118: 156 | M118: 6.25 | N118: 4 | O118: 3 | P118: 7 | Q118: 18 | R118: 4 | S118: 0 | T118: 0 | U118: 36 | V118: 5.142857143 | W118: J14 | X118: H
B119: VITRAC AARON | C119: BERGERAC SN | D119: J13H | E119: H | F119: 2005-03-21 | G119: 1.58 | H119: 7.85 | I119: 30 | J119: 7 | K119: 18 | L119: 304 | M119: 8.5 | N119: 4 | O119: 0 | P119: 10 | Q119: 3 | R119: 4 | S119: 7 | T119: 7 | U119: 35 | V119: 5 | W119: J14 | X119: H
B120: MAZAURY LORENZO | C120: HENDAYE EAE | D120: J14H | E120: H | F120: 2004-03-19 | G120: 1.7 | H120: 8.3 | I120: 42 | J120: 4 | K120: 10 | L120: 292 | M120: 5 | N120: 7 | O120: 2 | P120: 16 | Q120: 2 | R120: 2 | S120: 6 | T120: 0 | U120: 35 | V120: 5 | W120: J14 | X120: H
B121: BOURGUIGNON MATEO | C121: BAYONNE SN | D121: J14H | E121: H | F121: 2004-11-04 | G121: 1.65 | H121: 9 | I121: 32 | J121: 20 | K121: 10 | L121: 178 | M121: 7 | N121: 6 | O121: 6 | P121: 11 | Q121: 10 | R121: 2 | S121: 0 | T121: 0 | U121: 35 | V121: 5 | W121: J14 | X121: H
B122: HAMRERAS AMEL | C122: CHATELLERAULT SN | D122: J13H | E122: H | F122: 2005-01-15 | G122: 1.46 | H122: 8.15 | I122: 30 | J122: 29 | K122: 15 | L122: 168 | M122: 5 | N122: 2 | O122: 1 | P122: 10 | Q122: 19 | R122: 3 | S122: 0 | T122: 0 | U122: 35 | V122: 5 | W122: J14 | X122: H
B123: RATOUIT LOUIS | C123: CHATELLERAULT SN | D123: J13H | E123: H | F123: 2005-02-14 | G123: 1.46 | H123: 7.9 | I123: 23 | J123: 30 | K123: 13 | L123: 267 | M123: 5.5 | N123: 2 | O123: 0 | P123: 6 | Q123: 20 | R123: 3 | S123: 3 | T123: 0 | U123: 34 | V123: 4.857142857 | W123: J14 | X123: H
B124: SAGE DIEGO | C124: BAYONNE AV | D124: J13H | E124: H | F124: 2005-07-08 | G124: 1.6 | H124: 9.5 | I124: 37 | J124: 9 | K124: 15 | L124: 235 | M124: 2 | N124: 5 | O124: 10 | P124: 13 | Q124: 3 | R124: 3 | S124: 0 | T124: 0 | U124: 34 | V124: 4.857142857 | W124: J14 | X124: H
B125: CORTIJO ROMAIN | C125: LIBOURNE CN | D125: J13H | E125: H | F125: 2005-02-03 | G125: 1.31 | H125: 8.45 | I125: 18 | J125: 12 | K125: 22 | L125: 388 | M125: 7.25 | N125: 0 | O125: 3 | P125: 4 | Q125: 4 | R125: 7 | S125: 15 | T125: 0 | U125: 33 | V125: 4.714285714 | W125: J14 | X125: H
B126: LOUISARCENE LILIAN | C126: BAYONNE SN | D126: J14H | E126: H | F126: 2004-04-11 | G126: 1.65 | H126: 8.2 | I126: 27 | J126: 7 | K126: 18 | L126: 332 | M126: 4 | N126: 6 | O126: 2 | P126: 8 | Q126: 3 | R126: 4 | S126: 10 | T126: 0 | U126: 33 | V126: 4.714285714 | W126: J14 | X126: H
B127: TECHENE PIERRE | C127: AVIRON LANDES | D127: J13H | E127: H | F127: 2005-07-20 | G127: 1.7 | H127: 9.2 | I127: 28 | J127: 8 | K127: 20 | L127: 247 | M127: 5 | N127: 7 | O127: 8 | P127: 9 | Q127: 3 | R127: 5 | S127: 1 | T127: 0 | U127: 33 | V127: 4.714285714 | W127: J14 | X127: H
B128: LALANNE MATHIEU | C128: AVIRON LANDES | D128: J13H | E128: H | F128: 2005-10-12 | G128: 1.75 | H128: 9.4 | I128: 28 | J128: 8 | K128: 16 | L128: 201 | M128: 4 | N128: 8 | O128: 9 | P128: 9 | Q128: 3 | R128: 4 | S128: 0 | T128: 0 | U128: 33 | V128: 4.714285714 | W128: J14 | X128: H
B129: DJESSOU ARTHUR | C129: LIBOURNE CN | D129: J13H | E129: H | F129: 2005-08-01 | G129: 1.48 | H129: 8.89 | I129: 19 | J129: 9 | K129: 21 | L129: 353 | M129: 5.5 | N129: 2 | O129: 5 | P129: 4 | Q129: 3 | R129: 6 | S129: 12 | T129: 0 | U129: 32 | V129: 4.571428571 | W129: J14 | X129: H
B130: BISCAY MATHIAS | C130: BAYONNE SN | D130: J14H | E130: H | F130: 2004-02-24 | G130: 1.25 | H130: 7.2 | I130: 26 | J130: 17 | K130: 15 | L130: 360 | M130: 3 | N130: 0 | O130: 0 | P130: 8 | Q130: 7 | R130: 3 | S130: 13 | T130: 0 | U130: 31 | V130: 4.428571429 | W130: J14 | X130: H
B131: PAGNY QUENTIN | C131: BERGERAC SN | D131: J14H | E131: H | F131: 2004-03-29 | G131: 1.47 | H131: 8 | I131: 22 | J131: 30 | K131: 15 | L131: 195 | M131: 7.75 | N131: 2 | O131: 0 | P131: 6 | Q131: 20 | R131: 3 | S131: 0 | T131: 0 | U131: 31 | V131: 4.428571429 | W131: J14 | X131: H
B132: KAZMIERCZAK ROMAIN | C132: AVIRON LANDES | D132: J13H | E132: H | F132: 2005-04-17 | G132: 1.6 | H132: 8.7 | I132: 34 | J132: 11 | K132: 14 | L132: 246 | M132: 6 | N132: 5 | O132: 5 | P132: 12 | Q132: 4 | R132: 3 | S132: 1 | T132: 0 | U132: 30 | V132: 4.285714286 | W132: J14 | X132: H
B133: MARTIN CHARLES | C133: BERGERAC SN | D133: J14H | E133: H | F133: 2004-10-18 | G133: 1.45 | H133: 7.91 | I133: 24 | J133: 27 | K133: 19 | L133: 194 | M133: 4.25 | N133: 2 | O133: 0 | P133: 7 | Q133: 17 | R133: 4 | S133: 0 | T133: 0 | U133: 30 | V133: 4.285714286 | W133: J14 | X133: H
B134: BARON PIERRE | C134: LIBOURNE CN | D134: J13H | E134: H | F134: 2005-11-06 | G134: 1.51 | H134: 9.17 | I134: 18 | J134: 21 | K134: 18 | L134: 227 | M134: 7.5 | N134: 3 | O134: 7 | P134: 4 | Q134: 11 | R134: 4 | S134: 0 | T134: 0 | U134: 29 | V134: 4.142857143 | W134: J14 | X134: H
B135: Pascal Gabin | C135: SAINTES CA | D135: J14H | E135: H | F135: 2004-07-14 | G135: 1.5 | H135: 8 | I135: 24 | J135: 25 | K135: 19 | L135: 212 | M135: 6 | N135: 3 | O135: 0 | P135: 7 | Q135: 15 | R135: 4 | S135: 0 | T135: 0 | U135: 29 | V135: 4.142857143 | W135: J14 | X135: H
B136: DE ARAUJO LORENZO | C136: BORDEAUX EN | D136: J14H | E136: H | F136: 2004-11-16 | G136: 1.63 | H136: 8.54 | I136: 30 | J136: 0 | K136: 25 | L136: 0 | M136: 6 | N136: 5 | O136: 4 | P136: 10 | Q136: 0 | R136: 10 | S136: 0 | T136: 0 | U136: 29 | V136: 4.142857143 | W136: J14 | X136: H
B137: DUGUE CLEMENT | C137: ANGOULEME AC | D137: J13H | E137: H | F137: 2005-03-25 | G137: 1.5 | H137: 7.85 | I137: 21 | J137: 15 | K137: 16 | L137: 346 | M137: 4 | N137: 3 | O137: 0 | P137: 5 | Q137: 5 | R137: 4 | S137: 11 | T137: 0 | U137: 28 | V137: 4 | W137: J14 | X137: H
B138: ROUYER PAUL | C138: ANGOULEME AC | D138: J14H | E138: H | F138: 2004-09-01 | G138: 1.45 | H138: 8.38 | I138: 24 | J138: 5 | K138: 17 | L138: 337 | M138: 3.75 | N138: 2 | O138: 3 | P138: 7 | Q138: 2 | R138: 4 | S138: 10 | T138: 0 | U138: 28 | V138: 4 | W138: J14 | X138: H
B139: LEYRIS LUCIEN | C139: MARMANDE AV | D139: J13H | E139: H | F139: 2005-04-01 | G139: 1.42 | H139: 8.77 | I139: 28 | J139: 13 | K139: 16 | L139: 277 | M139: 4.5 | N139: 1 | O139: 5 | P139: 9 | Q139: 5 | R139: 4 | S139: 4 | T139: 0 | U139: 28 | V139: 4 | W139: J14 | X139: H
B140: WALKER SAM | C140: CASTILLON RC | D140: J13H | E140: H | F140: 2005-06-02 | G140: 1.54 | H140: 9.33 | I140: 24 | J140: 15 | K140: 14 | L140: 195 | M140: 5 | N140: =IF(G140<>"",IF(ISERROR(IF(E140="F",VLOOKUP(G140,saut_f,3,TRUE),VLOOKUP(G140,saut_m,2,TRUE))),0,IF(E140="F",VLOOKUP(G140,saut_f,3,TRUE),VLOOKUP(G140,saut_m,2,TRUE))),"") -> 3 | O140: =IF(H140<>"",IF(ISERROR(IF(E140="F",VLOOKUP(H140,foulees_f,3,TRUE),VLOOKUP(H140,foulees_m,2,TRUE))),0,IF(E140="F",VLOOKUP(H140,foulees_f,3,TRUE),VLOOKUP(H140,foulees_m,2,TRUE))),"") -> 8 | P140: =IF(I140<>"",IF(ISERROR(IF(E140="F",VLOOKUP(I140,sauth_f,3,TRUE),VLOOKUP(I140,sauth_m,2,TRUE))),0,IF(E140="F",VLOOKUP(I140,sauth_f,3,TRUE),VLOOKUP(I140,sauth_m,2,TRUE))),"") -> 7 | Q140: =IF(J140<>"",IF(ISERROR(IF(E140="F",VLOOKUP(J140,pompes_f,3,TRUE),VLOOKUP(J140,pompes_m,2,TRUE))),0,IF(E140="F",VLOOKUP(J140,pompes_f,3,TRUE),VLOOKUP(J140,pompes_m,2,TRUE))),"") -> 5 | R140: =IF(K140<>"",IF(ISERROR(IF(E140="F",VLOOKUP(K140,abdos_f,3,TRUE),VLOOKUP(K140,abdos_m,2,TRUE))),0,IF(E140="F",VLOOKUP(K140,abdos_f,3,TRUE),VLOOKUP(K140,abdos_m,2,TRUE))),"") -> 3 | S140: =IF(L140<>"",IF(ISERROR(IF(E140="F",VLOOKUP(L140,ergo_f,3,TRUE),VLOOKUP(L140,ergo_m,2,TRUE))),0,IF(E140="F",VLOOKUP(L140,ergo_f,3,TRUE),VLOOKUP(L140,ergo_m,2,TRUE))),"") -> 0 | T140: =IF(M140<>"",IF(ISERROR(IF(E140="F",VLOOKUP(M140,nav_f,3,TRUE),VLOOKUP(M140,nav_m,2,TRUE))),0,IF(E140="F",VLOOKUP(M140,nav_f,3,TRUE),VLOOKUP(M140,nav_m,2,TRUE)) ),"") -> 0 | U140: =SUM(T140,N140,O140,P140,Q140,R140,S140) -> 26 | V140: =IF(ISERROR(AVERAGE(T140,N140,O140,P140,Q140,R140,S140)),"0",AVERAGE(T140,N140,O140,P140,Q140,R140,S140)) -> 3.714285714 | W140: =IF(D140<>"",(IF(OR(LEFT(D140,3)="J13",LEFT(D140,3)="J14"),"J14",IF(OR(LEFT(D140,3)="J11",LEFT(D140,3)="J12"),"J12","J10"))),"") -> J14 | X140: =E140 -> H
B141: MASSOT RENZO | C141: BAYONNE AV | D141: J14H | E141: H | F141: 2004-03-05 | G141: 1.5 | H141: 8 | I141: 28 | J141: 11 | K141: 19 | L141: 282 | M141: 4 | N141: 3 | O141: 0 | P141: 9 | Q141: 4 | R141: 4 | S141: 5 | T141: 0 | U141: 25 | V141: 3.571428571 | W141: J14 | X141: H
B142: BOURDILCAZAJOUSPOULOT HENRI | C142: LA REOLE AS | D142: J14H | E142: H | F142: 2004-01-27 | G142: 0 | H142: 0 | I142: 0 | J142: 0 | K142: 17 | L142: 467 | M142: 0 | N142: 0 | O142: 0 | P142: 0 | Q142: 0 | R142: 4 | S142: 20 | T142: 0 | U142: 24 | V142: 3.428571429 | W142: J14 | X142: H
B143: BRU BRAGAGNOLO THOMAS | C143: BERGERAC SN | D143: J13H | E143: H | F143: 2005-04-22 | G143: 1.44 | H143: 8.3 | I143: 27 | J143: 9 | K143: 20 | L143: 288 | M143: 2.75 | N143: 1 | O143: 2 | P143: 8 | Q143: 3 | R143: 5 | S143: 5 | T143: 0 | U143: 24 | V143: 3.428571429 | W143: J14 | X143: H
B144: BERMUDEZ DOMINGO | C144: AVIRON LANDES | D144: J14H | E144: H | F144: 2004-01-31 | G144: 1.3 | H144: 8.3 | I144: 30 | J144: 3 | K144: 16 | L144: 297 | M144: 2 | N144: 0 | O144: 2 | P144: 10 | Q144: 1 | R144: 4 | S144: 6 | T144: 0 | U144: 23 | V144: 3.285714286 | W144: J14 | X144: H
B145: NEVES TITOUAN | C145: VILLENEUVE AV | D145: J14H | E145: H | F145: 2004-09-29 | G145: 1.31 | H145: 7.8 | I145: 19 | J145: 10 | K145: 20 | L145: 320 | M145: 0 | N145: 0 | O145: 0 | P145: 4 | Q145: 4 | R145: 5 | S145: 9 | T145: 0 | U145: 22 | V145: 3.142857143 | W145: J14 | X145: H
B146: COIFFARD DUPREUILH DIEGO | C146: BAYONNE AV | D146: J13H | E146: H | F146: 2005-03-03 | G146: 1.45 | H146: 8.6 | I146: 32 | J146: 7 | K146: 10 | L146: 238 | M146: 4 | N146: 2 | O146: 4 | P146: 11 | Q146: 3 | R146: 2 | S146: 0 | T146: 0 | U146: 22 | V146: 3.142857143 | W146: J14 | X146: H
B147: ETCHELECU IBAI | C147: PEYREHORADE CCG | D147: =IF(B147<>"","J"&((2018)-(YEAR(F147)))&E147,"") -> J13H | E147: H | F147: 2005-09-29 | G147: 1.55 | H147: 8.4 | I147: 29 | J147: 4 | K147: 12 | L147: 156 | M147: 3 | N147: 4 | O147: 3 | P147: 9 | Q147: 2 | R147: 3 | S147: 0 | T147: 0 | U147: 21 | V147: 3 | W147: J14 | X147: H
B148: LABEYRIE MAXIME | C148: AVIRON LANDES | D148: J13H | E148: H | F148: 2005-10-08 | G148: 1.4 | H148: 7.85 | I148: 30 | J148: 13 | K148: 16 | L148: 212 | M148: 6 | N148: 1 | O148: 0 | P148: 10 | Q148: 5 | R148: 4 | S148: 0 | T148: 0 | U148: 20 | V148: 2.857142857 | W148: J14 | X148: H
B149: WARSMANN LOUIS | C149: BERGERAC SN | D149: J13H | E149: H | F149: 2005-06-19 | G149: 1.3 | H149: 8.32 | I149: 22 | J149: 14 | K149: 21 | L149: 233 | M149: 6 | N149: 0 | O149: 2 | P149: 6 | Q149: 5 | R149: 6 | S149: 0 | T149: 0 | U149: 19 | V149: 2.714285714 | W149: J14 | X149: H
B150: HUYNH HUGO | C150: CHATELLERAULT SN | D150: J14H | E150: H | F150: 2004-06-17 | G150: 1.32 | H150: 7.62 | I150: 27 | J150: 12 | K150: 18 | L150: 254 | M150: 4.25 | N150: 0 | O150: 0 | P150: 8 | Q150: 4 | R150: 4 | S150: 2 | T150: 0 | U150: 18 | V150: 2.571428571 | W150: J14 | X150: H
B151: PARIENTI MARTIN | C151: ANGOULEME AC | D151: J13H | E151: H | F151: 2005-08-15 | G151: 1.45 | H151: 7.54 | I151: 26 | J151: 10 | K151: 15 | L151: 242 | M151: 5 | N151: 2 | O151: 0 | P151: 8 | Q151: 4 | R151: 3 | S151: 1 | T151: 0 | U151: 18 | V151: 2.571428571 | W151: J14 | X151: H
B152: SIERRA MARIUS | C152: LIBOURNE CN | D152: J13H | E152: H | F152: 2005-05-17 | G152: 1.43 | H152: 8.1 | I152: 27 | J152: 4 | K152: 20 | L152: 188 | M152: 4.75 | N152: 1 | O152: 1 | P152: 8 | Q152: 2 | R152: 5 | S152: 0 | T152: 0 | U152: 17 | V152: 2.428571429 | W152: J14 | X152: H
B153: ROGNERUD BRIAC | C153: BERGERAC SN | D153: J13H | E153: H | F153: 2005-03-29 | G153: 1.48 | H153: 8.47 | I153: 17 | J153: 10 | K153: 19 | L153: 169 | M153: 6 | N153: 2 | O153: 3 | P153: 3 | Q153: 4 | R153: 4 | S153: 0 | T153: 0 | U153: 16 | V153: 2.285714286 | W153: J14 | X153: H
B154: BONNARD RORY | C154: ANGOULEME AC | D154: J13H | E154: H | F154: 2005-08-04 | G154: 1.26 | H154: 7.01 | I154: 22 | J154: 10 | K154: 17 | L154: 241 | M154: 4 | N154: 0 | O154: 0 | P154: 6 | Q154: 4 | R154: 4 | S154: 1 | T154: 0 | U154: 15 | V154: 2.142857143 | W154: J14 | X154: H
B155: DELMOTTE QUENTIN | C155: LIBOURNE CN | D155: J13H | E155: H | F155: 2005-05-19 | G155: 1.43 | H155: 8.24 | I155: 22 | J155: 5 | K155: 19 | L155: 210 | M155: 5.25 | N155: 1 | O155: 2 | P155: 6 | Q155: 2 | R155: 4 | S155: 0 | T155: 0 | U155: 15 | V155: 2.142857143 | W155: J14 | X155: H
B156: TRABESSE CLEMENT | C156: BAYONNE AV | D156: J13H | E156: H | F156: 2005-10-24 | G156: 1.4 | H156: 7.4 | I156: 27 | J156: 4 | K156: 12 | L156: 200 | M156: 3 | N156: 1 | O156: 0 | P156: 8 | Q156: 2 | R156: 3 | S156: 0 | T156: 0 | U156: 14 | V156: 2 | W156: J14 | X156: H
B157: MERCIER JULES | C157: LIBOS-FUMEL CN | D157: J13H | E157: H | F157: 2005-07-12 | G157: 1.41 | H157: 8.03 | I157: 18 | J157: 9 | K157: 21 | L157: 198 | M157: 3.25 | N157: 1 | O157: 0 | P157: 4 | Q157: 3 | R157: 6 | S157: 0 | T157: 0 | U157: 14 | V157: 2 | W157: J14 | X157: H
B158: METRAS LEGRAND PIERRE | C158: SAINTE FOY CN | D158: J13H | E158: H | F158: 2005-03-02 | G158: 1.21 | H158: 7.47 | I158: 23 | J158: 8 | K158: 20 | L158: 159 | M158: 5 | N158: 0 | O158: 0 | P158: 6 | Q158: 3 | R158: 5 | S158: 0 | T158: 0 | U158: 14 | V158: 2 | W158: J14 | X158: H
B159: BRICOUT MAXIME | C159: AVIRON LANDES | D159: J13H | E159: H | F159: 2005-07-08 | G159: 1.3 | H159: 7.3 | I159: 24 | J159: 1 | K159: 17 | L159: 194 | M159: 3 | N159: 0 | O159: 0 | P159: 7 | Q159: 1 | R159: 4 | S159: 0 | T159: 0 | U159: 12 | V159: 1.714285714 | W159: J14 | X159: H
B160: AMADO ROMÉO | C160: HENDAYE EAE | D160: J13H | E160: H | F160: 2005-01-12 | G160: 1.25 | H160: 7.4 | I160: 22 | J160: 7 | K160: 10 | L160: 200 | M160: 2 | N160: 0 | O160: 0 | P160: 6 | Q160: 3 | R160: 2 | S160: 0 | T160: 0 | U160: 11 | V160: 1.571428571 | W160: J14 | X160: H
B161: LEINER GUILLAUME | C161: BERGERAC SN | D161: J14H | E161: H | F161: 2004-06-11 | G161: 1.32 | H161: 6.64 | I161: 23 | J161: 0 | K161: 18 | L161: 211 | M161: 4 | N161: 0 | O161: 0 | P161: 6 | Q161: 0 | R161: 4 | S161: 0 | T161: 0 | U161: 10 | V161: 1.428571429 | W161: J14 | X161: H
B162: CASTALDO SAM | C162: BERGERAC SN | D162: J13H | E162: H | F162: 2005-04-12 | G162: 1.25 | H162: 7.56 | I162: 14 | J162: 4 | K162: 22 | L162: 182 | M162: 3.25 | N162: 0 | O162: 0 | P162: 0 | Q162: 2 | R162: 7 | S162: 0 | T162: 0 | U162: 9 | V162: 1.285714286 | W162: J14 | X162: H
B163: COLDEBOEUF LUIGY | C163: BERGERAC SN | D163: J12H | E163: H | F163: 2006-03-16 | G163: 1.75 | H163: 10.63 | I163: 37 | J163: 20 | K163: 15 | L163: 323 | M163: 8.25 | N163: 8 | O163: 17 | P163: 13 | Q163: 10 | R163: 3 | S163: 9 | T163: 6 | U163: 66 | V163: 9.428571429 | W163: J12 | X163: H
B164: ALVES MATHIEU | C164: MARMANDE AV | D164: J12H | E164: H | F164: 2006-02-27 | G164: 1.86 | H164: 10.44 | I164: 29 | J164: 13 | K164: 16 | L164: 348 | M164: 7 | N164: 10 | O164: 16 | P164: 9 | Q164: 5 | R164: 4 | S164: 11 | T164: 0 | U164: 55 | V164: 7.857142857 | W164: J12 | X164: H
B165: TAIX PAUL | C165: LIBOURNE CN | D165: J12H | E165: H | F165: 2006-07-14 | G165: 1.74 | H165: 9.74 | I165: 34 | J165: 35 | K165: 18 | L165: 201 | M165: 7 | N165: 7 | O165: 11 | P165: 12 | Q165: 20 | R165: 4 | S165: 0 | T165: 0 | U165: 54 | V165: 7.714285714 | W165: J12 | X165: H
B166: VAST ENZO | C166: AVIRON LANDES | D166: J12H | E166: H | F166: 2006-10-08 | G166: 1.55 | H166: 8.7 | I166: 27 | J166: 40 | K166: 28 | L166: 171 | M166: 4 | N166: 4 | O166: 5 | P166: 8 | Q166: 20 | R166: 13 | S166: 0 | T166: 0 | U166: 50 | V166: 7.142857143 | W166: J12 | X166: H
B167: LAURENT NATHAN | C167: BAYONNE SN | D167: J12H | E167: H | F167: 2006-07-16 | G167: 1.85 | H167: 9.7 | I167: 31 | J167: 25 | K167: 15 | L167: 187 | M167: 4 | N167: 10 | O167: 11 | P167: 10 | Q167: 15 | R167: 3 | S167: 0 | T167: 0 | U167: 49 | V167: 7 | W167: J12 | X167: H
B168: FERET SASHA | C168: BAYONNE SN | D168: J12H | E168: H | F168: 2006-01-26 | G168: 1.6 | H168: 9.25 | I168: 29 | J168: 33 | K168: 17 | L168: 232 | M168: 5 | N168: 5 | O168: 8 | P168: 9 | Q168: 20 | R168: 4 | S168: 0 | T168: 0 | U168: 46 | V168: 6.571428571 | W168: J12 | X168: H
B169: LAHORGUE POULOT BAPTISTE | C169: BERGERAC SN | D169: J11H | E169: H | F169: 2007-05-09 | G169: 1.59 | H169: 9.36 | I169: 36 | J169: 22 | K169: 19 | L169: 234 | M169: 7.5 | N169: 4 | O169: 9 | P169: 13 | Q169: 12 | R169: 4 | S169: 0 | T169: 0 | U169: 42 | V169: 6 | W169: J12 | X169: H
B170: GIRAUD LEO | C170: COGNAC YRC | D170: J12H | E170: H | F170: 2006-03-15 | G170: 1.8 | H170: 9.2 | I170: 31 | J170: 20 | K170: 18 | L170: 213 | M170: 4.5 | N170: 9 | O170: 8 | P170: 10 | Q170: 10 | R170: 4 | S170: 0 | T170: 0 | U170: 41 | V170: 5.857142857 | W170: J12 | X170: H
B171: VOGELEER MAX | C171: MARMANDE AV | D171: J11H | E171: H | F171: 2007-04-28 | G171: 1.54 | H171: 8.75 | I171: 30 | J171: 40 | K171: 15 | L171: 135 | M171: 5 | N171: 3 | O171: 5 | P171: 10 | Q171: 20 | R171: 3 | S171: 0 | T171: 0 | U171: 41 | V171: 5.857142857 | W171: J12 | X171: H
B172: BOUGRIER LEANDRE | C172: CHATELLERAULT SN | D172: J12H | E172: H | F172: 2006-01-18 | G172: 1.71 | H172: 8.6 | I172: 34 | J172: 20 | K172: 14 | L172: 277 | M172: 5.5 | N172: 7 | O172: 4 | P172: 12 | Q172: 10 | R172: 3 | S172: 4 | T172: 0 | U172: 40 | V172: 5.714285714 | W172: J12 | X172: H
B173: DOUSSINEAU ALVARO | C173: CHATELLERAULT SN | D173: J12H | E173: H | F173: 2006-01-07 | G173: 1.59 | H173: 8.78 | I173: 33 | J173: 10 | K173: 17 | L173: 335 | M173: 4 | N173: 4 | O173: 5 | P173: 11 | Q173: 4 | R173: 4 | S173: 10 | T173: 0 | U173: 38 | V173: 5.428571429 | W173: J12 | X173: H
B174: BRIEC ETHAN | C174: BAYONNE SN | D174: J12H | E174: H | F174: 2006-05-03 | G174: 1.6 | H174: 7.9 | I174: 33 | J174: 24 | K174: 14 | L174: 163 | M174: 6 | N174: 5 | O174: 0 | P174: 11 | Q174: 14 | R174: 3 | S174: 0 | T174: 0 | U174: 33 | V174: 4.714285714 | W174: J12 | X174: H
B175: ROUSSEL ERWAN | C175: AVIRON LANDES | D175: J12H | E175: H | F175: 2006-10-18 | G175: 1.6 | H175: 9.1 | I175: 25 | J175: 21 | K175: 14 | L175: 161 | M175: 4 | N175: 5 | O175: 7 | P175: 7 | Q175: 11 | R175: 3 | S175: 0 | T175: 0 | U175: 33 | V175: 4.714285714 | W175: J12 | X175: H
B176: GOURC MERLIN | C176: BORDEAUX EN | D176: J12H | E176: H | F176: 2006-05-14 | G176: 1.67 | H176: 8.51 | I176: 26 | J176: 20 | K176: 19 | L176: 193 | M176: 7.5 | N176: 6 | O176: 4 | P176: 8 | Q176: 10 | R176: 4 | S176: 0 | T176: 0 | U176: 32 | V176: 4.571428571 | W176: J12 | X176: H
B177: FERNANDEZ FAIVRE-CHALON BEÑAT | C177: HENDAYE EAE | D177: J12H | E177: H | F177: 2006-03-30 | G177: 1.6 | H177: 8.5 | I177: 27 | J177: 19 | K177: 16 | L177: 228 | M177: 3 | N177: 5 | O177: 4 | P177: 8 | Q177: 9 | R177: 4 | S177: 0 | T177: 0 | U177: 30 | V177: 4.285714286 | W177: J12 | X177: H
B178: DENOUE Nathan UNSS | C178: ANGOULEME AC | D178: J12H | E178: H | F178: 2006-07-14 | G178: 1.53 | H178: 8.65 | I178: 24 | J178: 21 | K178: 17 | L178: 221 | M178: 5.45 | N178: 3 | O178: 5 | P178: 7 | Q178: 11 | R178: 4 | S178: 0 | T178: 0 | U178: 30 | V178: 4.285714286 | W178: J12 | X178: H
B179: VERMIS LUCAS | C179: BAYONNE SN | D179: =IF(B179<>"","J"&((2018)-(YEAR(F179)))&E179,"") -> J12H | E179: H | F179: 2006-07-17 | G179: 1.45 | H179: 8.4 | I179: 23 | J179: 20 | K179: 16 | L179: 274 | M179: 3 | N179: 2 | O179: 3 | P179: 6 | Q179: 10 | R179: 4 | S179: 4 | T179: 0 | U179: 29 | V179: 4.142857143 | W179: J12 | X179: H
B180: GRATEAUD LEO | C180: COGNAC YRC | D180: J12H | E180: H | F180: 2006-08-22 | G180: 1.49 | H180: 8.7 | I180: 24 | J180: 20 | K180: 16 | L180: 122 | M180: 5 | N180: 2 | O180: 5 | P180: 7 | Q180: 10 | R180: 4 | S180: 0 | T180: 0 | U180: 28 | V180: 4 | W180: J12 | X180: H
B181: BIDOYEN THEO | C181: AVIRON LANDES | D181: J12H | E181: H | F181: 2006-10-25 | G181: 1.5 | H181: 8.7 | I181: 31 | J181: 15 | K181: 15 | L181: 208 | M181: 4 | N181: 3 | O181: 5 | P181: 10 | Q181: 5 | R181: 3 | S181: 0 | T181: 0 | U181: 26 | V181: 3.714285714 | W181: J12 | X181: H
B182: BESSE GORKA | C182: BAYONNE SN | D182: J12H | E182: H | F182: 2006-09-28 | G182: 1.5 | H182: 8.2 | I182: 32 | J182: 17 | K182: 15 | L182: 128 | M182: 5 | N182: 3 | O182: 2 | P182: 11 | Q182: 7 | R182: 3 | S182: 0 | T182: 0 | U182: 26 | V182: 3.714285714 | W182: J12 | X182: H
B183: ROUQUET MAXENCE | C183: SAINTES CA | D183: J11H | E183: H | F183: 2007-01-29 | G183: 1.5 | H183: 7.27 | I183: 27 | J183: 17 | K183: 15 | L183: 124 | M183: 5.75 | N183: 3 | O183: 0 | P183: 8 | Q183: 7 | R183: 3 | S183: 0 | T183: 0 | U183: 21 | V183: 3 | W183: J12 | X183: H
B184: EL AYTARY | C184: BERGERAC SN | D184: J11H | E184: H | F184: 2007-07-14 | G184: 1.55 | H184: 8.03 | I184: 22 | J184: 12 | K184: 19 | L184: 141 | M184: 4.75 | N184: 4 | O184: 0 | P184: 6 | Q184: 4 | R184: 4 | S184: 0 | T184: 0 | U184: 18 | V184: 2.571428571 | W184: J12 | X184: H
B185: CHAUVEAU AUGUSTIN | C185: LIBOS-FUMEL CN | D185: J12H | E185: H | F185: 2006-02-21 | G185: 1.5 | H185: 8.24 | I185: 20 | J185: 10 | K185: 16 | L185: 132 | M185: 6.5 | N185: 3 | O185: 2 | P185: 5 | Q185: 4 | R185: 4 | S185: 0 | T185: 0 | U185: 18 | V185: 2.571428571 | W185: J12 | X185: H
B186: GILSON TEO | C186: BERGERAC SN | D186: J12H | E186: H | F186: 2006-10-06 | G186: 1.27 | H186: 8.81 | I186: 16 | J186: 10 | K186: 17 | L186: 173 | M186: 3.5 | N186: 0 | O186: 5 | P186: 3 | Q186: 4 | R186: 4 | S186: 0 | T186: 0 | U186: 16 | V186: 2.285714286 | W186: J12 | X186: H
B187: PEBAYLE AXEL | C187: BERGERAC SN | D187: J11H | E187: H | F187: 2007-03-22 | G187: 1.21 | H187: 8.04 | I187: 24 | J187: 14 | K187: 16 | L187: 166 | M187: 4 | N187: 0 | O187: 0 | P187: 7 | Q187: 5 | R187: 4 | S187: 0 | T187: 0 | U187: 16 | V187: 2.285714286 | W187: J12 | X187: H
B188: BASSET JORIS | C188: ANGOULEME AC | D188: J11H | E188: H | F188: 2007-06-29 | G188: 1.38 | H188: 7.3 | I188: 28 | J188: 8 | K188: 12 | L188: 126 | M188: 3.5 | N188: 0 | O188: 0 | P188: 9 | Q188: 3 | R188: 3 | S188: 0 | T188: 0 | U188: 15 | V188: 2.142857143 | W188: J12 | X188: H
B189: CAZAUX THOMAS | C189: PEYREHORADE CCG | D189: J12H | E189: H | F189: 2006-11-07 | G189: 1.3 | H189: 8.2 | I189: 23 | J189: 7 | K189: 12 | L189: 154 | M189: 4 | N189: 0 | O189: 2 | P189: 6 | Q189: 3 | R189: 3 | S189: 0 | T189: 0 | U189: 14 | V189: 2 | W189: J12 | X189: H
B190: ANDRIEUX ERNEST | C190: VILLENEUVE AV | D190: J11H | E190: H | F190: 2007-07-14 | G190: 1.3 | H190: 7.06 | I190: 25 | J190: 12 | K190: 14 | L190: 119 | M190: 2.25 | N190: 0 | O190: 0 | P190: 7 | Q190: 4 | R190: 3 | S190: 0 | T190: 0 | U190: 14 | V190: 2 | W190: J12 | X190: H
B191: MOURGUES ROMAIN | C191: BORDEAUX EN | D191: J12H | E191: H | F191: 2006-10-09 | G191: 1.37 | H191: 7.45 | I191: 21 | J191: 9 | K191: 17 | L191: 173 | M191: 5 | N191: 0 | O191: 0 | P191: 5 | Q191: 3 | R191: 4 | S191: 0 | T191: 0 | U191: 12 | V191: 1.714285714 | W191: J12 | X191: H
B192: BELFOUL GABRIEL | C192: LIBOURNE CN | D192: J11H | E192: H | F192: 2007-07-14 | G192: 1.34 | H192: 7.69 | I192: 19 | J192: 11 | K192: 15 | L192: 204 | M192: 2 | N192: 0 | O192: 0 | P192: 4 | Q192: 4 | R192: 3 | S192: 0 | T192: 0 | U192: 11 | V192: 1.571428571 | W192: J12 | X192: H
B193: RIEUBLANC EVAN | C193: LIBOURNE CN | D193: J11H | E193: H | F193: 2007-01-24 | G193: 1.37 | H193: 8.35 | I193: 15 | J193: 7 | K193: 19 | L193: 228 | M193: 6 | N193: 0 | O193: 3 | P193: 0 | Q193: 3 | R193: 4 | S193: 0 | T193: 0 | U193: 10 | V193: 1.428571429 | W193: J12 | X193: H
B194: PAUTHIER TONY | C194: MARMANDE AV | D194: J12H | E194: H | F194: 2006-12-04 | G194: 1.17 | H194: 6.32 | I194: 18 | J194: 5 | K194: 16 | L194: 78 | M194: 4 | N194: 0 | O194: 0 | P194: 4 | Q194: 2 | R194: 4 | S194: 0 | T194: 0 | U194: 10 | V194: 1.428571429 | W194: J12 | X194: H
B195: DUBOUE ALEXIS | C195: PEYREHORADE CCG | D195: J12H | E195: H | F195: 2006-04-24 | G195: 1.4 | H195: 6.8 | I195: 21 | J195: 3 | K195: 11 | L195: 142 | M195: 2 | N195: 1 | O195: 0 | P195: 5 | Q195: 1 | R195: 2 | S195: 0 | T195: 0 | U195: 9 | V195: 1.285714286 | W195: J12 | X195: H
B196: BULTEAU ANTOINE | C196: LIBOURNE CN | D196: J12H | E196: H | F196: 2006-06-21 | G196: 1.22 | H196: 6.91 | I196: 10 | J196: 13 | K196: 16 | L196: 230 | M196: 2 | N196: 0 | O196: 0 | P196: 0 | Q196: 5 | R196: 4 | S196: 0 | T196: 0 | U196: 9 | V196: 1.285714286 | W196: J12 | X196: H
B197: PONCHON TOM | C197: COGNAC YRC | D197: J12H | E197: H | F197: 2006-07-30 | G197: 1.19 | H197: 7.1 | I197: 18 | J197: 2 | K197: 13 | L197: 185 | M197: 6 | N197: 0 | O197: 0 | P197: 4 | Q197: 1 | R197: 3 | S197: 0 | T197: 0 | U197: 8 | V197: 1.142857143 | W197: J12 | X197: H
B198: FERREIRA RAPHAËL | C198: AVIRON LANDES | D198: J11H | E198: H | F198: 2007-01-05 | G198: 1.25 | H198: 6.5 | I198: 19 | J198: 1 | K198: 15 | L198: 206 | M198: 1 | N198: 0 | O198: 0 | P198: 4 | Q198: 1 | R198: 3 | S198: 0 | T198: 0 | U198: 8 | V198: 1.142857143 | W198: J12 | X198: H
B199: MOLLE BASTIEN | C199: MARMANDE AV | D199: J11H | E199: H | F199: 2007-05-25 | G199: 1.14 | H199: 7.2 | I199: 17 | J199: 3 | K199: 19 | L199: 188 | M199: 3 | N199: 0 | O199: 0 | P199: 3 | Q199: 1 | R199: 4 | S199: 0 | T199: 0 | U199: 8 | V199: 1.142857143 | W199: J12 | X199: H
B200: NAISSANT GIOVANNI | C200: BERGERAC SN | D200: J10H | E200: H | F200: 2008-07-14 | G200: 1.46 | H200: 8.8 | I200: 28 | J200: 11 | K200: 15 | L200: 160 | M200: 5 | N200: 2 | O200: 5 | P200: 9 | Q200: 4 | R200: 3 | S200: 0 | T200: 0 | U200: 23 | V200: 3.285714286 | W200: J10 | X200: H
B201: DALL'ACQUA GUILLAUME | C201: MIMIZAN CN | D201: J8H | E201: H | F201: 2010-02-19 | G201: 1.3 | H201: 7.2 | I201: 31 | J201: 18 | K201: 15 | L201: 90 | M201: 4 | N201: =IF(G201<>"",IF(ISERROR(IF(E201="F",VLOOKUP(G201,saut_f,3,TRUE),VLOOKUP(G201,saut_m,2,TRUE))),0,IF(E201="F",VLOOKUP(G201,saut_f,3,TRUE),VLOOKUP(G201,saut_m,2,TRUE))),"") -> 0 | O201: =IF(H201<>"",IF(ISERROR(IF(E201="F",VLOOKUP(H201,foulees_f,3,TRUE),VLOOKUP(H201,foulees_m,2,TRUE))),0,IF(E201="F",VLOOKUP(H201,foulees_f,3,TRUE),VLOOKUP(H201,foulees_m,2,TRUE))),"") -> 0 | P201: =IF(I201<>"",IF(ISERROR(IF(E201="F",VLOOKUP(I201,sauth_f,3,TRUE),VLOOKUP(I201,sauth_m,2,TRUE))),0,IF(E201="F",VLOOKUP(I201,sauth_f,3,TRUE),VLOOKUP(I201,sauth_m,2,TRUE))),"") -> 10 | Q201: =IF(J201<>"",IF(ISERROR(IF(E201="F",VLOOKUP(J201,pompes_f,3,TRUE),VLOOKUP(J201,pompes_m,2,TRUE))),0,IF(E201="F",VLOOKUP(J201,pompes_f,3,TRUE),VLOOKUP(J201,pompes_m,2,TRUE))),"") -> 8 | R201: =IF(K201<>"",IF(ISERROR(IF(E201="F",VLOOKUP(K201,abdos_f,3,TRUE),VLOOKUP(K201,abdos_m,2,TRUE))),0,IF(E201="F",VLOOKUP(K201,abdos_f,3,TRUE),VLOOKUP(K201,abdos_m,2,TRUE))),"") -> 3 | S201: =IF(L201<>"",IF(ISERROR(IF(E201="F",VLOOKUP(L201,ergo_f,3,TRUE),VLOOKUP(L201,ergo_m,2,TRUE))),0,IF(E201="F",VLOOKUP(L201,ergo_f,3,TRUE),VLOOKUP(L201,ergo_m,2,TRUE))),"") -> 0 | T201: =IF(M201<>"",IF(ISERROR(IF(E201="F",VLOOKUP(M201,nav_f,3,TRUE),VLOOKUP(M201,nav_m,2,TRUE))),0,IF(E201="F",VLOOKUP(M201,nav_f,3,TRUE),VLOOKUP(M201,nav_m,2,TRUE)) ),"") -> 0 | U201: =SUM(T201,N201,O201,P201,Q201,R201,S201) -> 21 | V201: =IF(ISERROR(AVERAGE(T201,N201,O201,P201,Q201,R201,S201)),"0",AVERAGE(T201,N201,O201,P201,Q201,R201,S201)) -> 3 | W201: =IF(D201<>"",(IF(OR(LEFT(D201,3)="J13",LEFT(D201,3)="J14"),"J14",IF(OR(LEFT(D201,3)="J11",LEFT(D201,3)="J12"),"J12","J10"))),"") -> J10 | X201: =E201 -> H
B202: MAGNAN FLORENTIN | C202: BAYONNE SN | D202: J10H | E202: H | F202: 2008-08-17 | G202: 1.4 | H202: 7 | I202: 24 | J202: 15 | K202: 11 | L202: 136 | M202: 5 | N202: 1 | O202: 0 | P202: 7 | Q202: 5 | R202: 2 | S202: 0 | T202: 0 | U202: 15 | V202: 2.142857143 | W202: J10 | X202: H
B203: GONDAT RAPHAEL | C203: CHATELLERAULT SN | D203: J10H | E203: H | F203: 2005-09-01 | G203: 1.6 | H203: 6.85 | I203: 18 | J203: 10 | K203: 7 | L203: 119 | M203: 4 | N203: 5 | O203: 0 | P203: 4 | Q203: 4 | R203: 1 | S203: 0 | T203: 0 | U203: 14 | V203: 2 | W203: J10 | X203: H
B204: HEREDIA ALEXI | C204: BERGERAC SN | D204: =IF(B204<>"","J"&((2018)-(YEAR(F204)))&E204,"") -> J10H | E204: H | F204: 2008-07-14 | G204: 1.06 | H204: 7 | I204: 21 | J204: 11 | K204: 18 | L204: 153 | M204: 3 | N204: 0 | O204: 0 | P204: 5 | Q204: 4 | R204: 4 | S204: 0 | T204: 0 | U204: 13 | V204: 1.857142857 | W204: J10 | X204: H
B205: ABBADIE MAXIME | C205: LIBOURNE CN | D205: =IF(B205<>"","J"&((2018)-(YEAR(F205)))&E205,"") -> J8H | E205: H | F205: 2010-07-14 | G205: 1.28 | H205: 7.12 | I205: 16 | J205: 10 | K205: 13 | L205: 108 | M205: 4 | N205: 0 | O205: 0 | P205: 3 | Q205: 4 | R205: 3 | S205: 0 | T205: 0 | U205: 10 | V205: 1.428571429 | W205: J10 | X205: H
D206: =IF(B206<>"","J"&((2018)-(YEAR(F206)))&E206,"") ->  | U206: 0 | V206: 0 | X206: 0
... 122 more rows

Sheet Feuille individuelle
C2: Cliquer dans la cellule ci-dessous et choisir le nom désiré dans la liste déroulante. | H2: Sexe : | I2: =VLOOKUP(nom,donnees,4,FALSE) -> H
B3: NOM Prénom : | C3: BELFOUL GABRIEL | H3: Date de naissance : | I3: =VLOOKUP(nom,donnees,5,FALSE) -> 2007-07-14
C5: Résultats des tests de condition physique - Rameurs J12 à J14
C6: =nom -> BELFOUL GABRIEL
C7: ="Sexe : "&sexe&" - Date de naissance : "&TEXT(ddn,"jj mmmm aaaa") -> Sexe : H - Date de naissance : 14 juillet 2007
C11: SAUT EN LONGUEUR SANS ÉLAN | D11: 5 FOULÉES BONDISSANTES | E11: SAUT EN HAUTEUR SANS ÉLAN | F11: POMPES | G11: ABDOMINAUX | H11: ERGO : 5 COUPS MAX | I11: TEST NAVETTE
B14: RÉSULTATS INDIVIDUELS | C14: =VALUE(VLOOKUP(nom,donnees,6,FALSE)) -> 1.34 | D14: =VLOOKUP(nom,donnees,7,FALSE) -> 7.69 | E14: =VLOOKUP(nom,donnees,8,FALSE) -> 19 | F14: =VLOOKUP(nom,donnees,9,FALSE) -> 11 | G14: =VLOOKUP(nom,donnees,10,FALSE) -> 15 | H14: =VLOOKUP(nom,donnees,11,FALSE) -> 204 | I14: =VLOOKUP(nom,donnees,12,FALSE) -> 2
B15: POINTS INDIVIDUELS | C15: =IF(ISERROR(IF(sexe="F",VLOOKUP(C14,saut_f,3,TRUE),VLOOKUP(C14,saut_m,2,TRUE))),0,IF(sexe="F",VLOOKUP(C14,saut_f,3,TRUE),VLOOKUP(C14,saut_m,2,TRUE))) -> 0 | D15: =IF(ISERROR(IF(sexe="F",VLOOKUP(D14,foulees_f,3,TRUE),VLOOKUP(D14,foulees_m,2,TRUE))),0,IF(sexe="F",VLOOKUP(D14,foulees_f,3,TRUE),VLOOKUP(D14,foulees_m,2,TRUE))) -> 0 | E15: =IF(ISERROR(IF(sexe="F",VLOOKUP(E14,sauth_f,3,TRUE),VLOOKUP(E14,sauth_m,2,TRUE))),0,IF(sexe="F",VLOOKUP(E14,sauth_f,3,TRUE),VLOOKUP(E14,sauth_m,2,TRUE))) -> 4 | F15: =IF(ISERROR(IF(sexe="F",VLOOKUP(F14,pompes_f,3,TRUE),VLOOKUP(F14,pompes_m,2,TRUE))),0,IF(sexe="F",VLOOKUP(F14,pompes_f,3,TRUE),VLOOKUP(F14,pompes_m,2,TRUE))) -> 4 | G15: =IF(ISERROR(IF(sexe="F",VLOOKUP(G14,abdos_f,3,TRUE),VLOOKUP(G14,abdos_m,2,TRUE))),0,IF(sexe="F",VLOOKUP(G14,abdos_f,3,TRUE),VLOOKUP(G14,abdos_m,2,TRUE))) -> 3 | H15: =IF(ISERROR(IF(sexe="F",VLOOKUP(H14,ergo_f,3,TRUE),VLOOKUP(H14,ergo_m,2,TRUE))),0,IF(sexe="F",VLOOKUP(H14,ergo_f,3,TRUE),VLOOKUP(H14,ergo_m,2,TRUE))) -> 0 | I15: =IF(ISERROR(IF(sexe="F",VLOOKUP(I14,nav_f,3,TRUE),VLOOKUP(I14,nav_m,2,TRUE))), 0,IF(sexe="F",VLOOKUP(I14,nav_f,3,TRUE),VLOOKUP(I14,nav_m,2,TRUE)) ) -> 0
B16: ="MOYENNE DES RÉSULTATS ("&sexe&")" -> MOYENNE DES RÉSULTATS (H) | C16: =AVERAGEIF(totalsexe, sexe,totalsaut) -> 1.647628866 | D16: =AVERAGEIF(totalsexe, sexe,totalfoulees) -> 9.106030928 | E16: =AVERAGEIF(totalsexe, sexe,totalsauth) -> 30.96907216 | F16: =AVERAGEIF(totalsexe, sexe,totalpompes) -> 19.8814433 | G16: =AVERAGEIF(totalsexe, sexe,totalabdos) -> 18.04639175 | H16: =AVERAGEIF(totalsexe, sexe,totalergo) -> 284.8247423 | I16: =AVERAGEIF(totalsexe, sexe,totalnav) -> 5.943814433
B17: ="MOYENNE DES POINTS ("&sexe&")" -> MOYENNE DES POINTS (H) | C17: =IF(ISERROR(IF(sexe="F",VLOOKUP(C16,saut_f,3,TRUE),VLOOKUP(C16,saut_m,2,TRUE))),0,IF(sexe="F",VLOOKUP(C16,saut_f,3,TRUE),VLOOKUP(C16,saut_m,2,TRUE))) -> 5 | D17: =IF(ISERROR(IF(sexe="F",VLOOKUP(D16,foulees_f,3,TRUE),VLOOKUP(D16,foulees_m,2,TRUE))),0,IF(sexe="F",VLOOKUP(D16,foulees_f,3,TRUE),VLOOKUP(D16,foulees_m,2,TRUE))) -> 7 | E17: =IF(ISERROR(IF(sexe="F",VLOOKUP(E16,sauth_f,3,TRUE),VLOOKUP(E16,sauth_m,2,TRUE))),0,IF(sexe="F",VLOOKUP(E16,sauth_f,3,TRUE),VLOOKUP(E16,sauth_m,2,TRUE))) -> 10 | F17: =IF(ISERROR(IF(sexe="F",VLOOKUP(F16,pompes_f,3,TRUE),VLOOKUP(F16,pompes_m,2,TRUE))),0,IF(sexe="F",VLOOKUP(F16,pompes_f,3,TRUE),VLOOKUP(F16,pompes_m,2,TRUE))) -> 9 | G17: =IF(ISERROR(IF(sexe="F",VLOOKUP(G16,abdos_f,3,TRUE),VLOOKUP(G16,abdos_m,2,TRUE))),0,IF(sexe="F",VLOOKUP(G16,abdos_f,3,TRUE),VLOOKUP(G16,abdos_m,2,TRUE))) -> 4 | H17: =IF(ISERROR(IF(sexe="F",VLOOKUP(H16,ergo_f,3,TRUE),VLOOKUP(H16,ergo_m,2,TRUE))),0,IF(sexe="F",VLOOKUP(H16,ergo_f,3,TRUE),VLOOKUP(H16,ergo_m,2,TRUE))) -> 5 | I17: =IF(ISERROR(IF(sexe="F",VLOOKUP(I16,nav_f,3,TRUE),VLOOKUP(I16,nav_m,2,TRUE))), 0,IF(sexe="F",VLOOKUP(I16,nav_f,3,TRUE),VLOOKUP(I16,nav_m,2,TRUE)) ) -> 0

Sheet Tests détaillés
B2: TEST N°1 | C2: SAUT EN LONGUEUR SANS ÉLAN
C3: Objectif
C4: Évaluer la puissance des membres inférieurs.
C5: Consignes
C6: Position de départ : juste derrière la ligne, pieds joints (légèrement écartés), genoux fléchis à 90°, bras libres en arrière. Je saute pieds joints le plus loin possible en lançant les bras en avant. Je me réceptionne au sol en ramenant mes pieds sous les fesses.
C7: Critères de réussite
C8: Je ne tombe pas en arrière à la réception.
C9: Je note la distance réalisée sur le saut (ligne de départ - talon)
C10: Matériels
C11: Décamètre – Mesure au niveau du talon.
B14: TEST N°2 | C14: 5 FOULÉES BONDISSANTES
C15: Objectif
C16: Évaluer la coordination des membres inférieurs.
C17: Consignes
C18: Position de départ : juste derrière la ligne, pieds joints (légèrement écartés). Je saute le plus loin possible en réalisant 5 foulées bondissantes pieds-joints sans m’arrêter.
C19: Critères de réussite
C20: La distance réalisée sur ces 5 foulées doit être supérieure à la somme des 5 sauts pieds-joints sans élan (Test n°1). Je ne tombe pas en arrière à la réception de la 5e foulée.
C21: Je note la distance totale réalisée sur les 5 sauts (ligne de départ - talon)
C22: Matériels
C23: Décamètre – Mesure au niveau du talon.
B26: TEST N°3 | C26: SAUT EN HAUTEUR SANS ÉLAN
C27: Objectif
C28: Évaluer la puissance des membres inférieurs.
C29: Consignes
C30: La position de départ est debout, jambes tendues. Au signal, je fléchis les jambes rapidement puis je saute le plus haut possible. Les mains restent libres. Je touche avec la main côté mur un point le plus haut possible.
C31: Critères de réussite
C32: Améliorer sa hauteur de saut sur chacun des trois essais. La meilleure performance réalisée est retenue.
C33: Je note la hauteur de saut réalisée (en cm).
C34: Matériels
C35: La hauteur de saut peut être mesurée avec :
C36: - une échelle de saut,
C37: - une craie sur un mur,
C38: - iPhone équipé de l’application MyJump (cf annexe pour les modalités d’utilisation).
B41: TEST N°4 | C41: POMPES
C42: Objectif
C43: Réaliser le maximum de pompes.
C44: Consignes
C45: Position de départ : allongé sur le ventre, les pieds écartés de 10 cm et en appui sur la face inférieure des orteils. L’espacement des mains correspond à une distance légèrement supérieure à celle des deux épaules. Les mains sont orientées vers l’avant. Je réalise le maximum de flexion-extension des membres supérieurs. La poitrine et le menton effleurent le sol à chaque flexion.
C46: Critères de réussite
C47: L’extension des bras est complète. Le corps reste en ligne droite (tête, tronc, fesses, genoux, pieds) durant tout le mouvement. Je descends complètement à chaque répétition sans me laisser tomber. Je note le nombre de pompes réalisées en respectant les critères de résussite.
B50: ÉVALUATION N°5 | C50: ABDOMINAUX
C51: Objectif
C52: Évaluer le gainage de la chaine abdominale.
C53: Consignes
C54: Au signal, je réalise le maximum de flexions-extensions du tronc durant 30 secondes.
C55: Critères de réalisation
C56: Je suis à plat dos au sol, les mains derrière la tête, les coudes écartés et les membres inférieurs fléchis à 90° environ. Les pieds sont posés au sol (en fléchissant les genoux). Je réalise le plus de flexions du tronc.
C57: Critères de réussite
C58: En flexion, mes coudes touchent mes genoux.
C59: En extension, mes épaules retrouvent le contact avec le sol.
C60: Mes pieds restent toujours au contact avec le sol.
C61: Je note le nombre de flexions-extensions réalisées en respectant le critère de réussite.
C62: Matériels
C63: Chrono
B66: ÉVALUATION N°6 | C66: ERGO : 5 COUPS MAX
C67: Objectif
C68: Évaluer la puissance (en Watt) sur 5 coups.
C69: Consignes
C70: Position de départ : 1/2 coulisse. Au signal, je produis la puissance la plus élevée possible sur 5 coups en respectant l'enchaînement du coup d’aviron (jambes, tronc, bras). Le volet de résistance est réglé sur à 5.
C71: Critères de réussite
C72: Je note la puissance maximale atteinte lors du 5e coup d'aviron
C73: Matériels
C74: 1 ergomètre aviron
B77: ÉVALUATION N°7 | C77: TEST NAVETTE
C78: Objectif
C79: Évaluer l’endurance.
C80: Consignes
C81: Je parcours le plus d’aller-retour entre deux bornes espacées de 20 m. J’arrive à chaque borne en même temps que le signal sonore.
C82: Critères de réussite
C83: Je termine l’épreuve au palier le plus élevé.
C84: Je note le nombre de paliers réalisés.
C85: Matériels
C86: 10 coupelles – 1 chrono – 1 sono – 1 bande sonore.

Sheet Barèmes
B2: TEST N°1 : SAUT EN LONGUEUR SANS ÉLAN
B3: BARÈME DE PERFORMANCE (m)
B4: Filles | C4: Garçons | D4: Points
B5: 2.1 | C5: 2.4 | D5: 20 | E5: Excellent
B6: 2.05 | C6: 2.35 | D6: 19
B7: 2 | C7: 2.3 | D7: 18
B8: 1.95 | C8: 2.25 | D8: 17
B9: 1.9 | C9: 2.15 | D9: 16
B10: 1.85 | C10: 2.1 | D10: 15 | E10: Très bien
B11: 1.8 | C11: 2.05 | D11: 14
B12: 1.75 | C12: 2 | D12: 13
B13: 1.7 | C13: 1.95 | D13: 12
B14: 1.65 | C14: 1.9 | D14: 11
B15: 1.6 | C15: 1.85 | D15: 10 | E15: Bien
B16: 1.55 | C16: 1.8 | D16: 9
B17: 1.5 | C17: 1.75 | D17: 8
B18: 1.45 | C18: 1.7 | D18: 7
B19: 1.4 | C19: 1.65 | D19: 6
B20: 1.35 | C20: 1.6 | D20: 5 | E20: Moyen
B21: 1.3 | C21: 1.55 | D21: 4
B22: 1.25 | C22: 1.5 | D22: 3
B23: 1.2 | C23: 1.45 | D23: 2
B24: 1.15 | C24: 1.4 | D24: 1
B28: TEST N°2 : 5 FOULÉES BONDISSANTES
B29: BARÈME DE PERFORMANCE (m)
B30: Filles | C30: Garçons | D30: Points
B31: 9.5 | C31: 11 | D31: 20 | E31: Excellent
B32: 9.35 | C32: 10.85 | D32: 19
B33: 9.2 | C33: 10.7 | D33: 18
B34: 9.05 | C34: 10.55 | D34: 17
B35: 8.9 | C35: 10.4 | D35: 16
B36: 8.75 | C36: 10.25 | D36: 15 | E36: Très bien
B37: 8.6 | C37: 10.1 | D37: 14
B38: 8.45 | C38: 9.95 | D38: 13
B39: 8.3 | C39: 9.8 | D39: 12
B40: 8.15 | C40: 9.65 | D40: 11
B41: 8 | C41: 9.5 | D41: 10 | E41: Bien
B42: 7.85 | C42: 9.35 | D42: 9
B43: 7.7 | C43: 9.2 | D43: 8
B44: 7.55 | C44: 9.05 | D44: 7
B45: 7.4 | C45: 8.9 | D45: 6
B46: 7.25 | C46: 8.65 | D46: 5 | E46: Moyen
B47: 7.1 | C47: 8.5 | D47: 4
B48: 7 | C48: 8.35 | D48: 3
B49: 6.85 | C49: 8.2 | D49: 2
B50: 6.7 | C50: 8.05 | D50: 1
B54: TEST N°3 : SAUT EN HAUTEUR SANS ÉLAN
B55: BARÈME DE PERFORMANCE (cm)
B56: Filles | C56: Garçons | D56: Points
B57: 40 | C57: 50 | D57: 20 | E57: Excellent
B58: 38 | C58: 48 | D58: 19
B59: 36 | C59: 46 | D59: 18
B60: 34 | C60: 44 | D60: 17
B61: 32 | C61: 42 | D61: 16
B62: 30 | C62: 40 | D62: 15 | E62: Très bien
B63: 28 | C63: 38 | D63: 14
B64: 26 | C64: 36 | D64: 13
B65: 24 | C65: 34 | D65: 12
B66: 22 | C66: 32 | D66: 11
B67: 20 | C67: 30 | D67: 10 | E67: Bien
B68: 18 | C68: 28 | D68: 9
B69: 16 | C69: 26 | D69: 8
B70: 14 | C70: 24 | D70: 7
B71: 12 | C71: 22 | D71: 6
B72: 10 | C72: 20 | D72: 5 | E72: Moyen
B73: 8 | C73: 18 | D73: 4
B74: - | C74: 16 | D74: 3
B75: - | C75: - | D75: 2
B76: - | C76: - | D76: 1
B79: TEST N°4 : POMPES
B80: BARÈME DE PERFORMANCE (rép.)
B81: Filles | C81: Garçons | D81: Points
B82: 20 | C82: 30 | D82: 20 | E82: Excellent
B83: 19 | C83: 29 | D83: 19
B84: 18 | C84: 28 | D84: 18
B85: 17 | C85: 27 | D85: 17
B86: 16 | C86: 26 | D86: 16
B87: 15 | C87: 25 | D87: 15 | E87: Très bien
B88: 14 | C88: 24 | D88: 14
B89: 13 | C89: 23 | D89: 13
B90: 12 | C90: 22 | D90: 12
B91: 11 | C91: 21 | D91: 11
B92: 10 | C92: 20 | D92: 10 | E92: Bien
B93: 9 | C93: 19 | D93: 9
B94: 8 | C94: 18 | D94: 8
B95: 7 | C95: 17 | D95: 7
B96: 6 | C96: 16 | D96: 6
B97: 5 | C97: 13 | D97: 5 | E97: Moyen
B98: 4 | C98: 10 | D98: 4
B99: 3 | C99: 7 | D99: 3
B100: 2 | C100: 4 | D100: 2
B101: 1 | C101: 1 | D101: 1
B105: TEST N°5 : ABDOMINAUX
B106: BARÈME DE PERFORMANCE (rép.)
B107: Filles | C107: Garçons | D107: Points
B108: 35 | C108: 35 | D108: 20 | E108: Excellent
B109: 34 | C109: 34 | D109: 19
B110: 33 | C110: 33 | D110: 18
B111: 32 | C111: 32 | D111: 17
B112: 31 | C112: 31 | D112: 16
B113: 30 | C113: 30 | D113: 15 | E113: Très bien
B114: 29 | C114: 29 | D114: 14
B115: 28 | C115: 28 | D115: 13
B116: 27 | C116: 27 | D116: 12
B117: 26 | C117: 26 | D117: 11
B118: 25 | C118: 25 | D118: 10 | E118: Bien
B119: 24 | C119: 24 | D119: 9
B120: 23 | C120: 23 | D120: 8
B121: 22 | C121: 22 | D121: 7
B122: 21 | C122: 21 | D122: 6
B123: 20 | C123: 20 | D123: 5 | E123: Moyen
B124: 16 | C124: 16 | D124: 4
B125: 12 | C125: 12 | D125: 3
B126: 8 | C126: 8 | D126: 2
B127: 4 | C127: 4 | D127: 1
B130: TEST N°6 : ERGO - 5 COUPS MAX
B131: BARÈME DE PERFORMANCE (W)
B132: Filles | C132: Garçons | D132: Points
B133: 400 | C133: 430 | D133: 20 | E133: Excellent
B134: 390 | C134: 420 | D134: 19
B135: 380 | C135: 410 | D135: 18
B136: 370 | C136: 400 | D136: 17
B137: 360 | C137: 390 | D137: 16
B138: 350 | C138: 380 | D138: 15 | E138: Très bien
B139: 340 | C139: 370 | D139: 14
B140: 330 | C140: 360 | D140: 13
B141: 320 | C141: 350 | D141: 12
B142: 310 | C142: 340 | D142: 11
B143: 300 | C143: 330 | D143: 10 | E143: Bien
B144: 290 | C144: 320 | D144: 9
B145: 280 | C145: 310 | D145: 8
B146: 270 | C146: 300 | D146: 7
B147: 260 | C147: 290 | D147: 6
B148: 250 | C148: 280 | D148: 5 | E148: Moyen
B149: 240 | C149: 270 | D149: 4
B150: 230 | C150: 260 | D150: 3
B151: 220 | C151: 250 | D151: 2
B152: 210 | C152: 240 | D152: 1
B156: TEST N°6 : TEST NAVETTE
B157: BARÈME DE PERFORMANCE (palier)
B158: Filles | C158: Garçons | D158: Points
B159: 14 | C159: 15 | D159: 20 | E159: Excellent
B160: 13.5 | C160: 14.5 | D160: 19
B161: 13 | C161: 14 | D161: 18
B162: 12.5 | C162: 13.5 | D162: 17
B163: 12 | C163: 13 | D163: 16
B164: 11.5 | C164: 12.5 | D164: 15 | E164: Très bien
B165: 11 | C165: 12 | D165: 14
B166: 10.5 | C166: 11.5 | D166: 13
B167: 10 | C167: 11 | D167: 12
B168: 9.5 | C168: 10.5 | D168: 11
B169: 9 | C169: 10 | D169: 10 | E169: Bien
B170: 8.5 | C170: 9.5 | D170: 9
B171: 8 | C171: 9 | D171: 8
B172: 7.5 | C172: 8.5 | D172: 7
B173: 7 | C173: 8 | D173: 6
B174: - | C174: - | D174: 5 | E174: Moyen
B175: - | C175: - | D175: 4
B176: - | C176: - | D176: 3
B177: - | C177: - | D177: 2
B178: - | C178: - | D178: 1

Sheet Points (hidden)
F1: Liste H & F
B2: TEST N°1 : SAUT EN LONGUEUR SANS ÉLAN | F2: F
B3: BARÈME DE PERFORMANCE (m) | F3: H
B4: Filles | C4: Garçons | D4: Points
B5: 1.15 | C5: 1.4 | D5: 1
B6: 1.2 | C6: 1.45 | D6: 2
B7: 1.25 | C7: 1.5 | D7: 3
B8: 1.3 | C8: 1.55 | D8: 4
B9: 1.35 | C9: 1.6 | D9: 5
B10: 1.4 | C10: 1.65 | D10: 6
B11: 1.45 | C11: 1.7 | D11: 7
B12: 1.5 | C12: 1.75 | D12: 8
B13: 1.55 | C13: 1.8 | D13: 9
B14: 1.6 | C14: 1.85 | D14: 10
B15: 1.65 | C15: 1.9 | D15: 11
B16: 1.7 | C16: 1.95 | D16: 12
B17: 1.75 | C17: 2 | D17: 13
B18: 1.8 | C18: 2.05 | D18: 14
B19: 1.85 | C19: 2.1 | D19: 15
B20: 1.9 | C20: 2.15 | D20: 16
B21: 1.95 | C21: 2.25 | D21: 17
B22: 2 | C22: 2.3 | D22: 18
B23: 2.05 | C23: 2.35 | D23: 19
B24: 2.1 | C24: 2.4 | D24: 20
B25: 3 | C25: 3 | D25: 20
B27: TEST N°2 : 5 FOULÉES BONDISSANTES
B28: BARÈME DE PERFORMANCE (m)
B29: Filles | C29: Garçons | D29: Points
B30: 6.7 | C30: 8.05 | D30: 1
B31: 6.85 | C31: 8.2 | D31: 2
B32: 7 | C32: 8.35 | D32: 3
B33: 7.1 | C33: 8.5 | D33: 4
B34: 7.25 | C34: 8.65 | D34: 5
B35: 7.4 | C35: 8.9 | D35: 6
B36: 7.55 | C36: 9.05 | D36: 7
B37: 7.7 | C37: 9.2 | D37: 8
B38: 7.85 | C38: 9.35 | D38: 9
B39: 8 | C39: 9.5 | D39: 10
B40: 8.15 | C40: 9.65 | D40: 11
B41: 8.3 | C41: 9.8 | D41: 12
B42: 8.45 | C42: 9.95 | D42: 13
B43: 8.6 | C43: 10.1 | D43: 14
B44: 8.75 | C44: 10.25 | D44: 15
B45: 8.9 | C45: 10.4 | D45: 16
B46: 9.05 | C46: 10.55 | D46: 17
B47: 9.2 | C47: 10.7 | D47: 18
B48: 9.35 | C48: 10.85 | D48: 19
B49: 9.5 | C49: 11 | D49: 20
B50: 15 | C50: 15 | D50: 20
B52: TEST N°3 : SAUT EN HAUTEUR SANS ÉLAN
B53: BARÈME DE PERFORMANCE (cm)
B54: Filles | C54: Garçons | D54: Points
B55: - | C55: - | D55: 1
B56: - | C56: - | D56: 2
B57: - | C57: 16 | D57: 3
B58: 8 | C58: 18 | D58: 4
B59: 10 | C59: 20 | D59: 5
B60: 12 | C60: 22 | D60: 6
B61: 14 | C61: 24 | D61: 7
B62: 16 | C62: 26 | D62: 8
B63: 18 | C63: 28 | D63: 9
B64: 20 | C64: 30 | D64: 10
B65: 22 | C65: 32 | D65: 11
B66: 24 | C66: 34 | D66: 12
B67: 26 | C67: 36 | D67: 13
B68: 28 | C68: 38 | D68: 14
B69: 30 | C69: 40 | D69: 15
B70: 32 | C70: 42 | D70: 16
B71: 34 | C71: 44 | D71: 17
B72: 36 | C72: 46 | D72: 18
B73: 38 | C73: 48 | D73: 19
B74: 40 | C74: 50 | D74: 20
B75: 100 | C75: 100 | D75: 20
B77: TEST N°4 : POMPES
B78: BARÈME DE PERFORMANCE (rép.)
B79: Filles | C79: Garçons | D79: Points
B80: 1 | C80: 1 | D80: 1
B81: 2 | C81: 4 | D81: 2
B82: 3 | C82: 7 | D82: 3
B83: 4 | C83: 10 | D83: 4
B84: 5 | C84: 13 | D84: 5
B85: 6 | C85: 16 | D85: 6
B86: 7 | C86: 17 | D86: 7
B87: 8 | C87: 18 | D87: 8
B88: 9 | C88: 19 | D88: 9
B89: 10 | C89: 20 | D89: 10
B90: 11 | C90: 21 | D90: 11
B91: 12 | C91: 22 | D91: 12
B92: 13 | C92: 23 | D92: 13
B93: 14 | C93: 24 | D93: 14
B94: 15 | C94: 25 | D94: 15
B95: 16 | C95: 26 | D95: 16
B96: 17 | C96: 27 | D96: 17
B97: 18 | C97: 28 | D97: 18
B98: 19 | C98: 29 | D98: 19
B99: 20 | C99: 30 | D99: 20
B100: 50 | C100: 50 | D100: 20
B102: TEST N°5 : ABDOMINAUX
B103: BARÈME DE PERFORMANCE (rép.)
B104: Filles | C104: Garçons | D104: Points
B105: 4 | C105: 4 | D105: 1
B106: 8 | C106: 8 | D106: 2
B107: 12 | C107: 12 | D107: 3
B108: 16 | C108: 16 | D108: 4
B109: 20 | C109: 20 | D109: 5
B110: 21 | C110: 21 | D110: 6
B111: 22 | C111: 22 | D111: 7
B112: 23 | C112: 23 | D112: 8
B113: 24 | C113: 24 | D113: 9
B114: 25 | C114: 25 | D114: 10
B115: 26 | C115: 26 | D115: 11
B116: 27 | C116: 27 | D116: 12
B117: 28 | C117: 28 | D117: 13
B118: 29 | C118: 29 | D118: 14
B119: 30 | C119: 30 | D119: 15
B120: 31 | C120: 31 | D120: 16
B121: 32 | C121: 32 | D121: 17
B122: 33 | C122: 33 | D122: 18
B123: 34 | C123: 34 | D123: 19
B124: 35 | C124: 35 | D124: 20
B125: 100 | C125: 100 | D125: 20
B127: TEST N°6 : ERGO - 5 COUPS MAX
B128: BARÈME DE PERFORMANCE (W)
B129: Filles | C129: Garçons | D129: Points
B130: 210 | C130: 240 | D130: 1
B131: 220 | C131: 250 | D131: 2
B132: 230 | C132: 260 | D132: 3
B133: 240 | C133: 270 | D133: 4
B134: 250 | C134: 280 | D134: 5
B135: 260 | C135: 290 | D135: 6
B136: 270 | C136: 300 | D136: 7
B137: 280 | C137: 310 | D137: 8
B138: 290 | C138: 320 | D138: 9
B139: 300 | C139: 330 | D139: 10
B140: 310 | C140: 340 | D140: 11
B141: 320 | C141: 350 | D141: 12
B142: 330 | C142: 360 | D142: 13
B143: 340 | C143: 370 | D143: 14
B144: 350 | C144: 380 | D144: 15
B145: 360 | C145: 390 | D145: 16
B146: 370 | C146: 400 | D146: 17
B147: 380 | C147: 410 | D147: 18
B148: 390 | C148: 420 | D148: 19
B149: 400 | C149: 430 | D149: 20
B150: 100 | C150: 100 | D150: 20
B152: TEST N°6 : TEST NAVETTE
B153: BARÈME DE PERFORMANCE (palier)
B154: Filles | C154: Garçons | D154: Points
B155: - | C155: - | D155: 1
B156: - | C156: - | D156: 2
B157: - | C157: - | D157: 3
B158: - | C158: - | D158: 4
B159: - | C159: - | D159: 5
B160: 7 | C160: 8 | D160: 6
B161: 7.5 | C161: 8.5 | D161: 7
B162: 8 | C162: 9 | D162: 8
B163: 8.5 | C163: 9.5 | D163: 9
B164: 9 | C164: 10 | D164: 10
B165: 9.5 | C165: 10.5 | D165: 11
B166: 10 | C166: 11 | D166: 12
B167: 10.5 | C167: 11.5 | D167: 13
B168: 11 | C168: 12 | D168: 14
B169: 11.5 | C169: 12.5 | D169: 15
B170: 12 | C170: 13 | D170: 16
B171: 12.5 | C171: 13.5 | D171: 17
B172: 13 | C172: 14 | D172: 18
B173: 13.5 | C173: 14.5 | D173: 19
B174: 14 | C174: 15 | D174: 20
B175: 20 | C175: 20 | D175: 20
